{"text_format":"1","workbook":"xlsx","n_sheets":3,"sheets":["Sheet3","Log","Sheet6"],"not_rendered":{"charts":0,"images":0,"macros":1,"external_links":0,"defined_names":3,"comments":0,"pivot_tables":0},"unopened":[],"bounds":{"document_bytes":16777216,"sheet_cells":100000,"rows_first":2000,"rows_last":500,"rows_between":2000,"halvings":0,"cell_chars":16384,"cell_head_chars":4096},"cells_cut":0,"cells_raw":0,"read":"whole","date_system":"1900"}

{"sheet":"Sheet3","index":0,"n_rows":502,"n_cols":11,"rows_kept":502,"cut":false,"hidden":false,"merged":[]}
["Team","Team Link","POINTS"]
["FLA","http://www.cbssports.com/nhl/teams/page/FLA","PLAYER","Link",null,null,"Alex Ovechkin",{"$f":"VLOOKUP(G2,C:D,2,FALSE)","v":"http://www.cbssports.com/nhl/players/player/gamelogs/2015/559829/"},null,"ANA","http://www.cbssports.com/nhl/teams/page/ANA"]
["NJ","http://www.cbssports.com/nhl/teams/page/NJ","Aaron Ekblad","http://www.cbssports.com/nhl/players/player/gamelogs/2015/2147283/",null,null,null,null,null,"ARI","http://www.cbssports.com/nhl/teams/page/ARI"]
["NJ","http://www.cbssports.com/nhl/teams/page/NJ","Adam Cracknell","http://www.cbssports.com/nhl/players/player/gamelogs/2015/1133587/",null,null,null,null,null,"BOS","http://www.cbssports.com/nhl/teams/page/BOS"]
["WPG","http://www.cbssports.com/nhl/teams/page/WPG","Adam Henrique","http://www.cbssports.com/nhl/players/player/gamelogs/2015/1639405/",null,null,null,null,null,"BUF","http://www.cbssports.com/nhl/teams/page/BUF"]
["LA","http://www.cbssports.com/nhl/teams/page/LA","Adam Larsson","http://www.cbssports.com/nhl/players/player/gamelogs/2015/1892909/",null,null,null,null,null,"CAR","http://www.cbssports.com/nhl/teams/page/CAR"]
["FLA","http://www.cbssports.com/nhl/teams/page/FLA","Adam Lowry","http://www.cbssports.com/nhl/players/player/gamelogs/2015/1897713/",null,null,null,null,null,"CGY","http://www.cbssports.com/nhl/teams/page/CGY"]
["DAL","http://www.cbssports.com/nhl/teams/page/DAL","Alec Martinez","http://www.cbssports.com/nhl/players/player/gamelogs/2015/1639440/",null,null,null,null,null,"CHI","http://www.cbssports.com/nhl/teams/page/CHI"]
["VAN","http://www.cbssports.com/nhl/teams/page/VAN","Aleksander Barkov","http://www.cbssports.com/nhl/players/player/gamelogs/2015/2076014/",null,null,null,null,null,"CLB","http://www.cbssports.com/nhl/teams/page/CLB"]
["OTT","http://www.cbssports.com/nhl/teams/page/OTT","Ales Hemsky","http://www.cbssports.com/nhl/players/player/gamelogs/2015/273213/",null,null,null,null,null,"COL","http://www.cbssports.com/nhl/teams/page/COL"]
["MON","http://www.cbssports.com/nhl/teams/page/MON","Alex Burrows","http://www.cbssports.com/nhl/players/player/gamelogs/2015/371763/",null,null,null,null,null,"DAL","http://www.cbssports.com/nhl/teams/page/DAL"]
["DAL","http://www.cbssports.com/nhl/teams/page/DAL","Alex Chiasson","http://www.cbssports.com/nhl/players/player/gamelogs/2015/2050261/",null,null,null,null,null,"DET","http://www.cbssports.com/nhl/teams/page/DET"]
["TB","http://www.cbssports.com/nhl/teams/page/TB","Alex Galchenyuk","http://www.cbssports.com/nhl/players/player/gamelogs/2015/2000657/",null,null,null,null,null,"EDM","http://www.cbssports.com/nhl/teams/page/EDM"]
["WAS","http://www.cbssports.com/nhl/teams/page/WAS","Alex Goligoski","http://www.cbssports.com/nhl/players/player/gamelogs/2015/1282429/",null,null,null,null,null,"FLA","http://www.cbssports.com/nhl/teams/page/FLA"]
["STL","http://www.cbssports.com/nhl/teams/page/STL","Alex Killorn","http://www.cbssports.com/nhl/players/player/gamelogs/2015/2042076/",null,null,null,null,null,"LA","http://www.cbssports.com/nhl/teams/page/LA"]
["COL","http://www.cbssports.com/nhl/teams/page/COL","Alex Ovechkin","http://www.cbssports.com/nhl/players/player/gamelogs/2015/559829/",null,null,null,null,null,"MIN","http://www.cbssports.com/nhl/teams/page/MIN"]
["VAN","http://www.cbssports.com/nhl/teams/page/VAN","Alex Petrovic","http://www.cbssports.com/nhl/players/player/gamelogs/2015/1771081/",null,null,null,null,null,"MON","http://www.cbssports.com/nhl/teams/page/MON"]
["CAR","http://www.cbssports.com/nhl/teams/page/CAR","Alex Pietrangelo","http://www.cbssports.com/nhl/players/player/gamelogs/2015/1639463/",null,null,null,null,null,"NJ","http://www.cbssports.com/nhl/teams/page/NJ"]
["STL","http://www.cbssports.com/nhl/teams/page/STL","Alex Tanguay","http://www.cbssports.com/nhl/players/player/gamelogs/2015/20534/",null,null,null,null,null,"NSH","http://www.cbssports.com/nhl/teams/page/NSH"]
["MON","http://www.cbssports.com/nhl/teams/page/MON","Alexander Burmistrov","http://www.cbssports.com/nhl/players/player/gamelogs/2015/1770882/",null,null,null,null,null,"NYI","http://www.cbssports.com/nhl/teams/page/NYI"]
["NYI","http://www.cbssports.com/nhl/teams/page/NYI","Alexander Edler","http://www.cbssports.com/nhl/players/player/gamelogs/2015/566008/",null,null,null,null,null,"NYR","http://www.cbssports.com/nhl/teams/page/NYR"]
["WAS","http://www.cbssports.com/nhl/teams/page/WAS","Alexander Steen","http://www.cbssports.com/nhl/players/player/gamelogs/2015/367818/",null,null,null,null,null,"OTT","http://www.cbssports.com/nhl/teams/page/OTT"]
["MON","http://www.cbssports.com/nhl/teams/page/MON","Alexander Wennberg","http://www.cbssports.com/nhl/players/player/gamelogs/2015/2076042/",null,null,null,null,null,"PHI","http://www.cbssports.com/nhl/teams/page/PHI"]
["CAR","http://www.cbssports.com/nhl/teams/page/CAR","Alexei Emelin","http://www.cbssports.com/nhl/players/player/gamelogs/2015/1892908/",null,null,null,null,null,"PIT","http://www.cbssports.com/nhl/teams/page/PIT"]
["ANA","http://www.cbssports.com/nhl/teams/page/ANA","Anders Lee","http://www.cbssports.com/nhl/players/player/gamelogs/2015/2053408/",null,null,null,null,null,"SJ","http://www.cbssports.com/nhl/teams/page/SJ"]
["EDM","http://www.cbssports.com/nhl/teams/page/EDM","Andre Burakovsky","http://www.cbssports.com/nhl/players/player/gamelogs/2015/2076015/",null,null,null,null,null,"STL","http://www.cbssports.com/nhl/teams/page/STL"]
["WPG","http://www.cbssports.com/nhl/teams/page/WPG","Andreas Athanasiou","http://www.cbssports.com/nhl/players/player/gamelogs/2015/2094035/",null,null,null,null,null,"TB","http://www.cbssports.com/nhl/teams/page/TB"]
["PHI","http://www.cbssports.com/nhl/teams/page/PHI","Andreas Martinsen","http://www.cbssports.com/nhl/players/player/gamelogs/2015/2197848/",null,null,null,null,null,"TOR","http://www.cbssports.com/nhl/teams/page/TOR"]
["CHI","http://www.cbssports.com/nhl/teams/page/CHI","Andrei Markov","http://www.cbssports.com/nhl/players/player/gamelogs/2015/204657/",null,null,null,null,null,"VAN","http://www.cbssports.com/nhl/teams/page/VAN"]
["NJ","http://www.cbssports.com/nhl/teams/page/NJ","Andrej Nestrasil","http://www.cbssports.com/nhl/players/player/gamelogs/2015/1707438/",null,null,null,null,null,"WAS","http://www.cbssports.com/nhl/teams/page/WAS"]
["NYR","http://www.cbssports.com/nhl/teams/page/NYR","Andrej Sekera","http://www.cbssports.com/nhl/players/player/gamelogs/2015/565421/",null,null,null,null,null,"WPG","http://www.cbssports.com/nhl/teams/page/WPG"]
["DAL","http://www.cbssports.com/nhl/teams/page/DAL","Andrej Sustr","http://www.cbssports.com/nhl/players/player/gamelogs/2015/2051254/"]
["ARI","http://www.cbssports.com/nhl/teams/page/ARI","Andrew Cogliano","http://www.cbssports.com/nhl/players/player/gamelogs/2015/1284625/"]
["EDM","http://www.cbssports.com/nhl/teams/page/EDM","Andrew Copp","http://www.cbssports.com/nhl/players/player/gamelogs/2015/2171361/"]
["TB","http://www.cbssports.com/nhl/teams/page/TB","Andrew Desjardins","http://www.cbssports.com/nhl/players/player/gamelogs/2015/1707933/"]
["LA","http://www.cbssports.com/nhl/teams/page/LA","Andrew Ladd","http://www.cbssports.com/nhl/players/player/gamelogs/2015/565239/"]
["CLB","http://www.cbssports.com/nhl/teams/page/CLB","Andrew Shaw","http://www.cbssports.com/nhl/players/player/gamelogs/2015/1899139/"]
["SJ","http://www.cbssports.com/nhl/teams/page/SJ","Andy Greene","http://www.cbssports.com/nhl/players/player/gamelogs/2015/1137448/"]
["STL","http://www.cbssports.com/nhl/teams/page/STL","Anthony Duclair","http://www.cbssports.com/nhl/players/player/gamelogs/2015/2094560/"]
["PIT","http://www.cbssports.com/nhl/teams/page/PIT","Antoine Roussel","http://www.cbssports.com/nhl/players/player/gamelogs/2015/1899135/"]
["ANA","http://www.cbssports.com/nhl/teams/page/ANA","Antoine Vermette","http://www.cbssports.com/nhl/players/player/gamelogs/2015/274304/"]
["CHI","http://www.cbssports.com/nhl/teams/page/CHI","Anton Stralman","http://www.cbssports.com/nhl/players/player/gamelogs/2015/1286087/"]
["EDM","http://www.cbssports.com/nhl/teams/page/EDM","Anze Kopitar","http://www.cbssports.com/nhl/players/player/gamelogs/2015/565682/"]
["PIT","http://www.cbssports.com/nhl/teams/page/PIT","Artem Anisimov","http://www.cbssports.com/nhl/players/player/gamelogs/2015/1286409/"]
["WPG","http://www.cbssports.com/nhl/teams/page/WPG","Artemi Panarin","http://www.cbssports.com/nhl/players/player/gamelogs/2015/2197859/"]
["VAN","http://www.cbssports.com/nhl/teams/page/VAN","Austin Watson","http://www.cbssports.com/nhl/players/player/gamelogs/2015/1771011/"]
["OTT","http://www.cbssports.com/nhl/teams/page/OTT","Beau Bennett","http://www.cbssports.com/nhl/players/player/gamelogs/2015/2038300/"]
["CLB","http://www.cbssports.com/nhl/teams/page/CLB","Ben Chiarot","http://www.cbssports.com/nhl/players/player/gamelogs/2015/1707557/"]
["EDM","http://www.cbssports.com/nhl/teams/page/EDM","Ben Hutton","http://www.cbssports.com/nhl/players/player/gamelogs/2015/2198314/"]
["FLA","http://www.cbssports.com/nhl/teams/page/FLA","Ben Lovejoy","http://www.cbssports.com/nhl/players/player/gamelogs/2015/1639520/"]
["CAR","http://www.cbssports.com/nhl/teams/page/CAR","Benoit Pouliot","http://www.cbssports.com/nhl/players/player/gamelogs/2015/566127/"]
["BOS","http://www.cbssports.com/nhl/teams/page/BOS","Blake Comeau","http://www.cbssports.com/nhl/players/player/gamelogs/2015/565815/"]
["CHI","http://www.cbssports.com/nhl/teams/page/CHI","Blake Wheeler","http://www.cbssports.com/nhl/players/player/gamelogs/2015/1622609/"]
["VAN","http://www.cbssports.com/nhl/teams/page/VAN","Bo Horvat","http://www.cbssports.com/nhl/players/player/gamelogs/2015/2076022/"]
["CLB","http://www.cbssports.com/nhl/teams/page/CLB","Bobby Farnham","http://www.cbssports.com/nhl/players/player/gamelogs/2015/2094993/"]
["FLA","http://www.cbssports.com/nhl/teams/page/FLA","Bobby Ryan","http://www.cbssports.com/nhl/players/player/gamelogs/2015/565257/"]
["MON","http://www.cbssports.com/nhl/teams/page/MON","Boone Jenner","http://www.cbssports.com/nhl/players/player/gamelogs/2015/1897689/"]
["CHI","http://www.cbssports.com/nhl/teams/page/CHI","Brad Boyes","http://www.cbssports.com/nhl/players/player/gamelogs/2015/204462/"]
["PIT","http://www.cbssports.com/nhl/teams/page/PIT","Brad Marchand","http://www.cbssports.com/nhl/players/player/gamelogs/2015/1133425/"]
["LA","http://www.cbssports.com/nhl/teams/page/LA","Brad Richards","http://www.cbssports.com/nhl/players/player/gamelogs/2015/20508/"]
["PHI","http://www.cbssports.com/nhl/teams/page/PHI","Brad Richardson","http://www.cbssports.com/nhl/players/player/gamelogs/2015/433607/"]
["MON","http://www.cbssports.com/nhl/teams/page/MON","Brandon Davidson","http://www.cbssports.com/nhl/players/player/gamelogs/2015/1770898/"]
["DET","http://www.cbssports.com/nhl/teams/page/DET","Brandon Dubinsky","http://www.cbssports.com/nhl/players/player/gamelogs/2015/566104/"]
["SJ","http://www.cbssports.com/nhl/teams/page/SJ","Brandon Pirri","http://www.cbssports.com/nhl/players/player/gamelogs/2015/1770972/"]
["SJ","http://www.cbssports.com/nhl/teams/page/SJ","Brandon Saad","http://www.cbssports.com/nhl/players/player/gamelogs/2015/1899136/"]
["CHI","http://www.cbssports.com/nhl/teams/page/CHI","Brayden McNabb","http://www.cbssports.com/nhl/players/player/gamelogs/2015/1707431/"]
["TB","http://www.cbssports.com/nhl/teams/page/TB","Brayden Schenn","http://www.cbssports.com/nhl/players/player/gamelogs/2015/1707454/"]
["TB","http://www.cbssports.com/nhl/teams/page/TB","Braydon Coburn","http://www.cbssports.com/nhl/players/player/gamelogs/2015/433590/"]
["FLA","http://www.cbssports.com/nhl/teams/page/FLA","Brendan Gallagher","http://www.cbssports.com/nhl/players/player/gamelogs/2015/1771071/"]
["BUF","http://www.cbssports.com/nhl/teams/page/BUF","Brendan Smith","http://www.cbssports.com/nhl/players/player/gamelogs/2015/1770992/"]
["BUF","http://www.cbssports.com/nhl/teams/page/BUF","Brenden Dillon","http://www.cbssports.com/nhl/players/player/gamelogs/2015/1897644/"]
["NYI","http://www.cbssports.com/nhl/teams/page/NYI","Brent Burns","http://www.cbssports.com/nhl/players/player/gamelogs/2015/433206/"]
["WAS","http://www.cbssports.com/nhl/teams/page/WAS","Brent Seabrook","http://www.cbssports.com/nhl/players/player/gamelogs/2015/435267/"]
["WAS","http://www.cbssports.com/nhl/teams/page/WAS","Brett Connolly","http://www.cbssports.com/nhl/players/player/gamelogs/2015/1770891/"]
["CHI","http://www.cbssports.com/nhl/teams/page/CHI","Brett Pesce","http://www.cbssports.com/nhl/players/player/gamelogs/2015/2147652/"]
["WPG","http://www.cbssports.com/nhl/teams/page/WPG","Brian Boyle","http://www.cbssports.com/nhl/players/player/gamelogs/2015/1282214/"]
["NYI","http://www.cbssports.com/nhl/teams/page/NYI","Brian Campbell","http://www.cbssports.com/nhl/players/player/gamelogs/2015/19784/"]
["NSH","http://www.cbssports.com/nhl/teams/page/NSH","Brian Dumoulin","http://www.cbssports.com/nhl/players/player/gamelogs/2015/2094561/"]
["NYI","http://www.cbssports.com/nhl/teams/page/NYI","Brian Flynn","http://www.cbssports.com/nhl/players/player/gamelogs/2015/2044867/"]
["CLB","http://www.cbssports.com/nhl/teams/page/CLB","Brian Gionta","http://www.cbssports.com/nhl/players/player/gamelogs/2015/274253/"]
["ANA","http://www.cbssports.com/nhl/teams/page/ANA","Brock Nelson","http://www.cbssports.com/nhl/players/player/gamelogs/2015/2059787/"]
["STL","http://www.cbssports.com/nhl/teams/page/STL","Brooks Laich","http://www.cbssports.com/nhl/players/player/gamelogs/2015/368994/"]
["NYR","http://www.cbssports.com/nhl/teams/page/NYR","Bryan Little","http://www.cbssports.com/nhl/players/player/gamelogs/2015/1133423/"]
["BOS","http://www.cbssports.com/nhl/teams/page/BOS","Bryan Rust","http://www.cbssports.com/nhl/players/player/gamelogs/2015/2147507/"]
["NYI","http://www.cbssports.com/nhl/teams/page/NYI","Cal Clutterbuck","http://www.cbssports.com/nhl/players/player/gamelogs/2015/1133466/"]
["TB","http://www.cbssports.com/nhl/teams/page/TB","Calle Jarnkrok","http://www.cbssports.com/nhl/players/player/gamelogs/2015/2094584/"]
["MIN","http://www.cbssports.com/nhl/teams/page/MIN","Calvin de Haan","http://www.cbssports.com/nhl/players/player/gamelogs/2015/1707471/"]
["VAN","http://www.cbssports.com/nhl/teams/page/VAN","Cam Atkinson","http://www.cbssports.com/nhl/players/player/gamelogs/2015/1897597/"]
["BOS","http://www.cbssports.com/nhl/teams/page/BOS","Cam Fowler","http://www.cbssports.com/nhl/players/player/gamelogs/2015/1770908/"]
["NYR","http://www.cbssports.com/nhl/teams/page/NYR","Carl Hagelin","http://www.cbssports.com/nhl/players/player/gamelogs/2015/1897673/"]
["PIT","http://www.cbssports.com/nhl/teams/page/PIT","Carl Soderberg","http://www.cbssports.com/nhl/players/player/gamelogs/2015/1134156/"]
["BUF","http://www.cbssports.com/nhl/teams/page/BUF","Casey Cizikas","http://www.cbssports.com/nhl/players/player/gamelogs/2015/1707391/"]
["VAN","http://www.cbssports.com/nhl/teams/page/VAN","Charlie Coyle","http://www.cbssports.com/nhl/players/player/gamelogs/2015/2041394/"]
["CAR","http://www.cbssports.com/nhl/teams/page/CAR","Chris Kreider","http://www.cbssports.com/nhl/players/player/gamelogs/2015/1966327/"]
["PHI","http://www.cbssports.com/nhl/teams/page/PHI","Chris Kunitz","http://www.cbssports.com/nhl/players/player/gamelogs/2015/435197/"]
["PIT","http://www.cbssports.com/nhl/teams/page/PIT","Chris Neil","http://www.cbssports.com/nhl/players/player/gamelogs/2015/204694/"]
["OTT","http://www.cbssports.com/nhl/teams/page/OTT","Chris Stewart","http://www.cbssports.com/nhl/players/player/gamelogs/2015/1133489/"]
["PHI","http://www.cbssports.com/nhl/teams/page/PHI","Chris Tanev","http://www.cbssports.com/nhl/players/player/gamelogs/2015/1771089/"]
["OTT","http://www.cbssports.com/nhl/teams/page/OTT","Chris Terry","http://www.cbssports.com/nhl/players/player/gamelogs/2015/1280613/"]
["DAL","http://www.cbssports.com/nhl/teams/page/DAL","Chris Thorburn","http://www.cbssports.com/nhl/players/player/gamelogs/2015/272754/"]
["TOR","http://www.cbssports.com/nhl/teams/page/TOR","Chris Tierney","http://www.cbssports.com/nhl/players/player/gamelogs/2015/2094650/"]
["BUF","http://www.cbssports.com/nhl/teams/page/BUF","Chris VandeVelde","http://www.cbssports.com/nhl/players/player/gamelogs/2015/1771009/"]
["COL","http://www.cbssports.com/nhl/teams/page/COL","Chris Wideman","http://www.cbssports.com/nhl/players/player/gamelogs/2015/2094815/"]
["NSH","http://www.cbssports.com/nhl/teams/page/NSH","Christian Ehrhoff","http://www.cbssports.com/nhl/players/player/gamelogs/2015/273522/"]
["DAL","http://www.cbssports.com/nhl/teams/page/DAL","Claude Giroux","http://www.cbssports.com/nhl/players/player/gamelogs/2015/1282469/"]
["ANA","http://www.cbssports.com/nhl/teams/page/ANA","Cody Ceci","http://www.cbssports.com/nhl/players/player/gamelogs/2015/2000653/"]
["NSH","http://www.cbssports.com/nhl/teams/page/NSH","Cody Eakin","http://www.cbssports.com/nhl/players/player/gamelogs/2015/1707514/"]
["CGY","http://www.cbssports.com/nhl/teams/page/CGY","Cody Franson","http://www.cbssports.com/nhl/players/player/gamelogs/2015/565818/"]
["OTT","http://www.cbssports.com/nhl/teams/page/OTT","Cody McLeod","http://www.cbssports.com/nhl/players/player/gamelogs/2015/1137195/"]
["MON","http://www.cbssports.com/nhl/teams/page/MON","Colin Greening","http://www.cbssports.com/nhl/players/player/gamelogs/2015/1770917/"]
["NJ","http://www.cbssports.com/nhl/teams/page/NJ","Colin Miller","http://www.cbssports.com/nhl/players/player/gamelogs/2015/1897733/"]
["NJ","http://www.cbssports.com/nhl/teams/page/NJ","Colin Wilson","http://www.cbssports.com/nhl/players/player/gamelogs/2015/1689412/"]
["NYR","http://www.cbssports.com/nhl/teams/page/NYR","Colton Parayko","http://www.cbssports.com/nhl/players/player/gamelogs/2015/2197860/"]
["NYR","http://www.cbssports.com/nhl/teams/page/NYR","Colton Sceviour","http://www.cbssports.com/nhl/players/player/gamelogs/2015/1639479/"]
["VAN","http://www.cbssports.com/nhl/teams/page/VAN","Connor McDavid","http://www.cbssports.com/nhl/players/player/gamelogs/2015/2178633/"]
["COL","http://www.cbssports.com/nhl/teams/page/COL","Connor Murphy","http://www.cbssports.com/nhl/players/player/gamelogs/2015/2094615/"]
["CHI","http://www.cbssports.com/nhl/teams/page/CHI","Corey Perry","http://www.cbssports.com/nhl/players/player/gamelogs/2015/433603/"]
["BOS","http://www.cbssports.com/nhl/teams/page/BOS","Craig Smith","http://www.cbssports.com/nhl/players/player/gamelogs/2015/1897791/"]
["VAN","http://www.cbssports.com/nhl/teams/page/VAN","Curtis Lazar","http://www.cbssports.com/nhl/players/player/gamelogs/2015/2076025/"]
["TOR","http://www.cbssports.com/nhl/teams/page/TOR","Dale Weise","http://www.cbssports.com/nhl/players/player/gamelogs/2015/1639496/"]
["DET","http://www.cbssports.com/nhl/teams/page/DET","Damon Severson","http://www.cbssports.com/nhl/players/player/gamelogs/2015/2093865/"]
["DET","http://www.cbssports.com/nhl/teams/page/DET","Dan Boyle","http://www.cbssports.com/nhl/players/player/gamelogs/2015/125842/"]
["FLA","http://www.cbssports.com/nhl/teams/page/FLA","Dan Girardi","http://www.cbssports.com/nhl/players/player/gamelogs/2015/1137447/"]
["STL","http://www.cbssports.com/nhl/teams/page/STL","Dan Hamhuis","http://www.cbssports.com/nhl/players/player/gamelogs/2015/273310/"]
["TOR","http://www.cbssports.com/nhl/teams/page/TOR","Daniel Sedin","http://www.cbssports.com/nhl/players/player/gamelogs/2015/151203/"]
["MON","http://www.cbssports.com/nhl/teams/page/MON","Daniel Winnik","http://www.cbssports.com/nhl/players/player/gamelogs/2015/1134160/"]
["CGY","http://www.cbssports.com/nhl/teams/page/CGY","Danny DeKeyser","http://www.cbssports.com/nhl/players/player/gamelogs/2015/2053880/"]
["BOS","http://www.cbssports.com/nhl/teams/page/BOS","Darren Helm","http://www.cbssports.com/nhl/players/player/gamelogs/2015/565675/"]
["OTT","http://www.cbssports.com/nhl/teams/page/OTT","David Backes","http://www.cbssports.com/nhl/players/player/gamelogs/2015/1134106/"]
["PIT","http://www.cbssports.com/nhl/teams/page/PIT","David Desharnais","http://www.cbssports.com/nhl/players/player/gamelogs/2015/1639595/"]
["CHI","http://www.cbssports.com/nhl/teams/page/CHI","David Jones","http://www.cbssports.com/nhl/players/player/gamelogs/2015/1283885/"]
["CLB","http://www.cbssports.com/nhl/teams/page/CLB","David Krejci","http://www.cbssports.com/nhl/players/player/gamelogs/2015/1133596/"]
["BOS","http://www.cbssports.com/nhl/teams/page/BOS","David Legwand","http://www.cbssports.com/nhl/players/player/gamelogs/2015/20466/"]
["CGY","http://www.cbssports.com/nhl/teams/page/CGY","David Pastrnak","http://www.cbssports.com/nhl/players/player/gamelogs/2015/2147475/"]
["VAN","http://www.cbssports.com/nhl/teams/page/VAN","David Perron","http://www.cbssports.com/nhl/players/player/gamelogs/2015/1282181/"]
["FLA","http://www.cbssports.com/nhl/teams/page/FLA","David Savard","http://www.cbssports.com/nhl/players/player/gamelogs/2015/1707452/"]
["EDM","http://www.cbssports.com/nhl/teams/page/EDM","David Schlemko","http://www.cbssports.com/nhl/players/player/gamelogs/2015/1661360/"]
["NYR","http://www.cbssports.com/nhl/teams/page/NYR","Dennis Seidenberg","http://www.cbssports.com/nhl/players/player/gamelogs/2015/369011/"]
["NYR","http://www.cbssports.com/nhl/teams/page/NYR","Dennis Wideman","http://www.cbssports.com/nhl/players/player/gamelogs/2015/435308/"]
["ANA","http://www.cbssports.com/nhl/teams/page/ANA","Derek Dorsett","http://www.cbssports.com/nhl/players/player/gamelogs/2015/1280563/"]
["TOR","http://www.cbssports.com/nhl/teams/page/TOR","Derek MacKenzie","http://www.cbssports.com/nhl/players/player/gamelogs/2015/152173/"]
["STL","http://www.cbssports.com/nhl/teams/page/STL","Derek Stepan","http://www.cbssports.com/nhl/players/player/gamelogs/2015/1770995/"]
["FLA","http://www.cbssports.com/nhl/teams/page/FLA","Derick Brassard","http://www.cbssports.com/nhl/players/player/gamelogs/2015/1133462/"]
["NYR","http://www.cbssports.com/nhl/teams/page/NYR","Devante Smith-Pelly","http://www.cbssports.com/nhl/players/player/gamelogs/2015/2058140/"]
["BOS","http://www.cbssports.com/nhl/teams/page/BOS","Dion Phaneuf","http://www.cbssports.com/nhl/players/player/gamelogs/2015/433604/"]
["LA","http://www.cbssports.com/nhl/teams/page/LA","Dmitrij Jaskin","http://www.cbssports.com/nhl/players/player/gamelogs/2015/2054434/"]
["DET","http://www.cbssports.com/nhl/teams/page/DET","Dmitry Kulikov","http://www.cbssports.com/nhl/players/player/gamelogs/2015/1707518/"]
["BUF","http://www.cbssports.com/nhl/teams/page/BUF","Dmitry Orlov","http://www.cbssports.com/nhl/players/player/gamelogs/2015/1899127/"]
["CHI","http://www.cbssports.com/nhl/teams/page/CHI","Dominic Moore","http://www.cbssports.com/nhl/players/player/gamelogs/2015/204680/"]
["LA","http://www.cbssports.com/nhl/teams/page/LA","Dougie Hamilton","http://www.cbssports.com/nhl/players/player/gamelogs/2015/1897675/"]
["WPG","http://www.cbssports.com/nhl/teams/page/WPG","Drew Doughty","http://www.cbssports.com/nhl/players/player/gamelogs/2015/1628806/"]
["LA","http://www.cbssports.com/nhl/teams/page/LA","Drew Stafford","http://www.cbssports.com/nhl/players/player/gamelogs/2015/1133619/"]
["FLA","http://www.cbssports.com/nhl/teams/page/FLA","Duncan Keith","http://www.cbssports.com/nhl/players/player/gamelogs/2015/435185/"]
["CAR","http://www.cbssports.com/nhl/teams/page/CAR","Dustin Brown","http://www.cbssports.com/nhl/players/player/gamelogs/2015/433636/"]
["WAS","http://www.cbssports.com/nhl/teams/page/WAS","Dustin Byfuglien","http://www.cbssports.com/nhl/players/player/gamelogs/2015/566539/"]
["NJ","http://www.cbssports.com/nhl/teams/page/NJ","Dwight King","http://www.cbssports.com/nhl/players/player/gamelogs/2015/1280578/"]
["OTT","http://www.cbssports.com/nhl/teams/page/OTT","Dylan Larkin","http://www.cbssports.com/nhl/players/player/gamelogs/2015/2147354/"]
["NSH","http://www.cbssports.com/nhl/teams/page/NSH","Elias Lindholm","http://www.cbssports.com/nhl/players/player/gamelogs/2015/2076026/"]
["CAR","http://www.cbssports.com/nhl/teams/page/CAR","Emerson Etem","http://www.cbssports.com/nhl/players/player/gamelogs/2015/1770901/"]
["DAL","http://www.cbssports.com/nhl/teams/page/DAL","Eric Fehr","http://www.cbssports.com/nhl/players/player/gamelogs/2015/433648/"]
["OTT","http://www.cbssports.com/nhl/teams/page/OTT","Eric Staal","http://www.cbssports.com/nhl/players/player/gamelogs/2015/433611/"]
["FLA","http://www.cbssports.com/nhl/teams/page/FLA","Erik Condra","http://www.cbssports.com/nhl/players/player/gamelogs/2015/1707586/"]
["MIN","http://www.cbssports.com/nhl/teams/page/MIN","Erik Gustafsson","http://www.cbssports.com/nhl/players/player/gamelogs/2015/2197823/"]
["COL","http://www.cbssports.com/nhl/teams/page/COL","Erik Haula","http://www.cbssports.com/nhl/players/player/gamelogs/2015/2094579/"]
["OTT","http://www.cbssports.com/nhl/teams/page/OTT","Erik Johnson","http://www.cbssports.com/nhl/players/player/gamelogs/2015/1228267/"]
["WPG","http://www.cbssports.com/nhl/teams/page/WPG","Erik Karlsson","http://www.cbssports.com/nhl/players/player/gamelogs/2015/1697789/"]
["PIT","http://www.cbssports.com/nhl/teams/page/PIT","Evander Kane","http://www.cbssports.com/nhl/players/player/gamelogs/2015/1707561/"]
["WAS","http://www.cbssports.com/nhl/teams/page/WAS","Evgeni Malkin","http://www.cbssports.com/nhl/players/player/gamelogs/2015/1128973/"]
["NSH","http://www.cbssports.com/nhl/teams/page/NSH","Evgeny Kuznetsov","http://www.cbssports.com/nhl/players/player/gamelogs/2015/2119761/"]
["ANA","http://www.cbssports.com/nhl/teams/page/ANA","Evgeny Medvedev","http://www.cbssports.com/nhl/players/player/gamelogs/2015/2197727/"]
["NYI","http://www.cbssports.com/nhl/teams/page/NYI","Filip Forsberg","http://www.cbssports.com/nhl/players/player/gamelogs/2015/2000656/"]
["NSH","http://www.cbssports.com/nhl/teams/page/NSH","Francois Beauchemin","http://www.cbssports.com/nhl/players/player/gamelogs/2015/204443/"]
["COL","http://www.cbssports.com/nhl/teams/page/COL","Frank Vatrano","http://www.cbssports.com/nhl/players/player/gamelogs/2015/2197887/"]
["BOS","http://www.cbssports.com/nhl/teams/page/BOS","Frans Nielsen","http://www.cbssports.com/nhl/players/player/gamelogs/2015/1134138/"]
["DET","http://www.cbssports.com/nhl/teams/page/DET","Gabriel Landeskog","http://www.cbssports.com/nhl/players/player/gamelogs/2015/1897704/"]
["ANA","http://www.cbssports.com/nhl/teams/page/ANA","Gregory Campbell","http://www.cbssports.com/nhl/players/player/gamelogs/2015/347844/"]
["VAN","http://www.cbssports.com/nhl/teams/page/VAN","Gustav Nyquist","http://www.cbssports.com/nhl/players/player/gamelogs/2015/1897745/"]
["DET","http://www.cbssports.com/nhl/teams/page/DET","Hampus Lindholm","http://www.cbssports.com/nhl/players/player/gamelogs/2015/2000665/"]
["NYR","http://www.cbssports.com/nhl/teams/page/NYR","Henrik Sedin","http://www.cbssports.com/nhl/players/player/gamelogs/2015/151204/"]
["CLB","http://www.cbssports.com/nhl/teams/page/CLB","Henrik Zetterberg","http://www.cbssports.com/nhl/players/player/gamelogs/2015/151240/"]
["WPG","http://www.cbssports.com/nhl/teams/page/WPG","Ian Cole","http://www.cbssports.com/nhl/players/player/gamelogs/2015/1770890/"]
["STL","http://www.cbssports.com/nhl/teams/page/STL","Iiro Pakarinen","http://www.cbssports.com/nhl/players/player/gamelogs/2015/2147474/"]
["TOR","http://www.cbssports.com/nhl/teams/page/TOR","J.T. Brown","http://www.cbssports.com/nhl/players/player/gamelogs/2015/1961381/"]
["LA","http://www.cbssports.com/nhl/teams/page/LA","J.T. Miller","http://www.cbssports.com/nhl/players/player/gamelogs/2015/1892911/"]
["ANA","http://www.cbssports.com/nhl/teams/page/ANA","Jaccob Slavin","http://www.cbssports.com/nhl/players/player/gamelogs/2015/2197878/"]
["DET","http://www.cbssports.com/nhl/teams/page/DET","Jack Eichel","http://www.cbssports.com/nhl/players/player/gamelogs/2015/2178632/"]
["PHI","http://www.cbssports.com/nhl/teams/page/PHI","Jack Johnson","http://www.cbssports.com/nhl/players/player/gamelogs/2015/1209085/"]
["NSH","http://www.cbssports.com/nhl/teams/page/NSH","Jack Skille","http://www.cbssports.com/nhl/players/player/gamelogs/2015/1282453/"]
["SJ","http://www.cbssports.com/nhl/teams/page/SJ","Jacob Josefson","http://www.cbssports.com/nhl/players/player/gamelogs/2015/1770930/"]
["TOR","http://www.cbssports.com/nhl/teams/page/TOR","Jacob Trouba","http://www.cbssports.com/nhl/players/player/gamelogs/2015/2000679/"]
["CLB","http://www.cbssports.com/nhl/teams/page/CLB","Jaden Schwartz","http://www.cbssports.com/nhl/players/player/gamelogs/2015/1778767/"]
["DAL","http://www.cbssports.com/nhl/teams/page/DAL","Jake Gardiner","http://www.cbssports.com/nhl/players/player/gamelogs/2015/1897666/"]
["LA","http://www.cbssports.com/nhl/teams/page/LA","Jake McCabe","http://www.cbssports.com/nhl/players/player/gamelogs/2015/2038918/"]
["DAL","http://www.cbssports.com/nhl/teams/page/DAL","Jake Muzzin","http://www.cbssports.com/nhl/players/player/gamelogs/2015/1639452/"]
["COL","http://www.cbssports.com/nhl/teams/page/COL","Jake Virtanen","http://www.cbssports.com/nhl/players/player/gamelogs/2015/2198328/"]
["VAN","http://www.cbssports.com/nhl/teams/page/VAN","Jakob Silfverberg","http://www.cbssports.com/nhl/players/player/gamelogs/2015/1970778/"]
["OTT","http://www.cbssports.com/nhl/teams/page/OTT","Jakub Voracek","http://www.cbssports.com/nhl/players/player/gamelogs/2015/1280617/"]
["MIN","http://www.cbssports.com/nhl/teams/page/MIN","James Neal","http://www.cbssports.com/nhl/players/player/gamelogs/2015/565402/"]
["COL","http://www.cbssports.com/nhl/teams/page/COL","James van Riemsdyk","http://www.cbssports.com/nhl/players/player/gamelogs/2015/1689413/"]
["NJ","http://www.cbssports.com/nhl/teams/page/NJ","Jamie Benn","http://www.cbssports.com/nhl/players/player/gamelogs/2015/1639346/"]
["LA","http://www.cbssports.com/nhl/teams/page/LA","Jamie McGinn","http://www.cbssports.com/nhl/players/player/gamelogs/2015/1133712/"]
["WAS","http://www.cbssports.com/nhl/teams/page/WAS","Jannik Hansen","http://www.cbssports.com/nhl/players/player/gamelogs/2015/566017/"]
["DAL","http://www.cbssports.com/nhl/teams/page/DAL","Jared McCann","http://www.cbssports.com/nhl/players/player/gamelogs/2015/2198317/"]
["TB","http://www.cbssports.com/nhl/teams/page/TB","Jared Spurgeon","http://www.cbssports.com/nhl/players/player/gamelogs/2015/1639484/"]
["MIN","http://www.cbssports.com/nhl/teams/page/MIN","Jarome Iginla","http://www.cbssports.com/nhl/players/player/gamelogs/2015/19096/"]
["DAL","http://www.cbssports.com/nhl/teams/page/DAL","Jaromir Jagr","http://www.cbssports.com/nhl/players/player/gamelogs/2015/19278/"]
["MIN","http://www.cbssports.com/nhl/teams/page/MIN","Jason Chimera","http://www.cbssports.com/nhl/players/player/gamelogs/2015/152286/"]
["WAS","http://www.cbssports.com/nhl/teams/page/WAS","Jason Demers","http://www.cbssports.com/nhl/players/player/gamelogs/2015/1639513/"]
["STL","http://www.cbssports.com/nhl/teams/page/STL","Jason Garrison","http://www.cbssports.com/nhl/players/player/gamelogs/2015/1639667/"]
["WPG","http://www.cbssports.com/nhl/teams/page/WPG","Jason Pominville","http://www.cbssports.com/nhl/players/player/gamelogs/2015/272751/"]
["CAR","http://www.cbssports.com/nhl/teams/page/CAR","Jason Spezza","http://www.cbssports.com/nhl/players/player/gamelogs/2015/273557/"]
["LA","http://www.cbssports.com/nhl/teams/page/LA","Jason Zucker","http://www.cbssports.com/nhl/players/player/gamelogs/2015/1960880/"]
["EDM","http://www.cbssports.com/nhl/teams/page/EDM","Jay Beagle","http://www.cbssports.com/nhl/players/player/gamelogs/2015/1605163/"]
["CAR","http://www.cbssports.com/nhl/teams/page/CAR","Jay Bouwmeester","http://www.cbssports.com/nhl/players/player/gamelogs/2015/347842/"]
["NYR","http://www.cbssports.com/nhl/teams/page/NYR","Jay McClement","http://www.cbssports.com/nhl/players/player/gamelogs/2015/274275/"]
["FLA","http://www.cbssports.com/nhl/teams/page/FLA","Jean-Gabriel Pageau","http://www.cbssports.com/nhl/players/player/gamelogs/2015/1897752/"]
["CGY","http://www.cbssports.com/nhl/teams/page/CGY","Jeff Carter","http://www.cbssports.com/nhl/players/player/gamelogs/2015/434820/"]
["MON","http://www.cbssports.com/nhl/teams/page/MON","Jeff Petry","http://www.cbssports.com/nhl/players/player/gamelogs/2015/1765200/"]
["CAR","http://www.cbssports.com/nhl/teams/page/CAR","Jeff Skinner","http://www.cbssports.com/nhl/players/player/gamelogs/2015/1770990/"]
["CGY","http://www.cbssports.com/nhl/teams/page/CGY","Jesper Fast","http://www.cbssports.com/nhl/players/player/gamelogs/2015/2094564/"]
["SJ","http://www.cbssports.com/nhl/teams/page/SJ","Jimmy Hayes","http://www.cbssports.com/nhl/players/player/gamelogs/2015/1899100/"]
["SJ","http://www.cbssports.com/nhl/teams/page/SJ","Jiri Hudler","http://www.cbssports.com/nhl/players/player/gamelogs/2015/433597/"]
["WAS","http://www.cbssports.com/nhl/teams/page/WAS","Joakim Nordstrom","http://www.cbssports.com/nhl/players/player/gamelogs/2015/2094620/"]
["TOR","http://www.cbssports.com/nhl/teams/page/TOR","Joe Colborne","http://www.cbssports.com/nhl/players/player/gamelogs/2015/1770889/"]
["DET","http://www.cbssports.com/nhl/teams/page/DET","Joe Pavelski","http://www.cbssports.com/nhl/players/player/gamelogs/2015/1133717/"]
["WAS","http://www.cbssports.com/nhl/teams/page/WAS","Joe Thornton","http://www.cbssports.com/nhl/players/player/gamelogs/2015/19634/"]
["DAL","http://www.cbssports.com/nhl/teams/page/DAL","Joel Edmundson","http://www.cbssports.com/nhl/players/player/gamelogs/2015/1897650/"]
["COL","http://www.cbssports.com/nhl/teams/page/COL","Joel Ward","http://www.cbssports.com/nhl/players/player/gamelogs/2015/274306/"]
["NYI","http://www.cbssports.com/nhl/teams/page/NYI","Joffrey Lupul","http://www.cbssports.com/nhl/players/player/gamelogs/2015/372289/"]
["CAR","http://www.cbssports.com/nhl/teams/page/CAR","Johan Larsson","http://www.cbssports.com/nhl/players/player/gamelogs/2015/2043047/"]
["NYI","http://www.cbssports.com/nhl/teams/page/NYI","John Carlson","http://www.cbssports.com/nhl/players/player/gamelogs/2015/1639364/"]
["CGY","http://www.cbssports.com/nhl/teams/page/CGY","John Klingberg","http://www.cbssports.com/nhl/players/player/gamelogs/2015/2094406/"]
["NJ","http://www.cbssports.com/nhl/teams/page/NJ","John Mitchell","http://www.cbssports.com/nhl/players/player/gamelogs/2015/566122/"]
["TB","http://www.cbssports.com/nhl/teams/page/TB","John Moore","http://www.cbssports.com/nhl/players/player/gamelogs/2015/1707435/"]
["DET","http://www.cbssports.com/nhl/teams/page/DET","John Tavares","http://www.cbssports.com/nhl/players/player/gamelogs/2015/1685406/"]
["FLA","http://www.cbssports.com/nhl/teams/page/FLA","John-Michael Liles","http://www.cbssports.com/nhl/players/player/gamelogs/2015/435205/"]
["CHI","http://www.cbssports.com/nhl/teams/page/CHI","Johnny Boychuk","http://www.cbssports.com/nhl/players/player/gamelogs/2015/346965/"]
["EDM","http://www.cbssports.com/nhl/teams/page/EDM","Johnny Gaudreau","http://www.cbssports.com/nhl/players/player/gamelogs/2015/2123003/"]
["CAR","http://www.cbssports.com/nhl/teams/page/CAR","Johnny Oduya","http://www.cbssports.com/nhl/players/player/gamelogs/2015/273331/"]
["DAL","http://www.cbssports.com/nhl/teams/page/DAL","Jonathan Ericsson","http://www.cbssports.com/nhl/players/player/gamelogs/2015/1133591/"]
["STL","http://www.cbssports.com/nhl/teams/page/STL","Jonathan Huberdeau","http://www.cbssports.com/nhl/players/player/gamelogs/2015/1897686/"]
["NYI","http://www.cbssports.com/nhl/teams/page/NYI","Jonathan Marchessault","http://www.cbssports.com/nhl/players/player/gamelogs/2015/1897598/"]
["CGY","http://www.cbssports.com/nhl/teams/page/CGY","Jonathan Toews","http://www.cbssports.com/nhl/players/player/gamelogs/2015/1282456/"]
["FLA","http://www.cbssports.com/nhl/teams/page/FLA","Joonas Donskoi","http://www.cbssports.com/nhl/players/player/gamelogs/2015/2197818/"]
["DET","http://www.cbssports.com/nhl/teams/page/DET","Jordan Eberle","http://www.cbssports.com/nhl/players/player/gamelogs/2015/1639388/"]
["SJ","http://www.cbssports.com/nhl/teams/page/SJ","Jordan Martinook","http://www.cbssports.com/nhl/players/player/gamelogs/2015/2094050/"]
["CAR","http://www.cbssports.com/nhl/teams/page/CAR","Jordan Staal","http://www.cbssports.com/nhl/players/player/gamelogs/2015/1133726/"]
["MIN","http://www.cbssports.com/nhl/teams/page/MIN","Jordie Benn","http://www.cbssports.com/nhl/players/player/gamelogs/2015/1769706/"]
["EDM","http://www.cbssports.com/nhl/teams/page/EDM","Jori Lehtera","http://www.cbssports.com/nhl/players/player/gamelogs/2015/2147297/"]
["LA","http://www.cbssports.com/nhl/teams/page/LA","Joseph Blandisi","http://www.cbssports.com/nhl/players/player/gamelogs/2015/2093845/"]
["WAS","http://www.cbssports.com/nhl/teams/page/WAS","Josh Bailey","http://www.cbssports.com/nhl/players/player/gamelogs/2015/1639341/"]
["ARI","http://www.cbssports.com/nhl/teams/page/ARI","Josh Gorges","http://www.cbssports.com/nhl/players/player/gamelogs/2015/371784/"]
["VAN","http://www.cbssports.com/nhl/teams/page/VAN","Josh Jooris","http://www.cbssports.com/nhl/players/player/gamelogs/2015/2094997/"]
["CLB","http://www.cbssports.com/nhl/teams/page/CLB","Josh Manson","http://www.cbssports.com/nhl/players/player/gamelogs/2015/2147300/"]
["NYR","http://www.cbssports.com/nhl/teams/page/NYR","Jussi Jokinen","http://www.cbssports.com/nhl/players/player/gamelogs/2015/565389/"]
["NYR","http://www.cbssports.com/nhl/teams/page/NYR","Justin Abdelkader","http://www.cbssports.com/nhl/players/player/gamelogs/2015/1606856/"]
["STL","http://www.cbssports.com/nhl/teams/page/STL","Justin Braun","http://www.cbssports.com/nhl/players/player/gamelogs/2015/1770879/"]
["PIT","http://www.cbssports.com/nhl/teams/page/PIT","Justin Faulk","http://www.cbssports.com/nhl/players/player/gamelogs/2015/1897659/"]
["CGY","http://www.cbssports.com/nhl/teams/page/CGY","Justin Fontaine","http://www.cbssports.com/nhl/players/player/gamelogs/2015/1899088/"]
["CHI","http://www.cbssports.com/nhl/teams/page/CHI","Justin Schultz","http://www.cbssports.com/nhl/players/player/gamelogs/2015/1993276/"]
["MIN","http://www.cbssports.com/nhl/teams/page/MIN","Justin Williams","http://www.cbssports.com/nhl/players/player/gamelogs/2015/204851/"]
["ARI","http://www.cbssports.com/nhl/teams/page/ARI","Jyrki Jokipakka","http://www.cbssports.com/nhl/players/player/gamelogs/2015/2094405/"]
["LA","http://www.cbssports.com/nhl/teams/page/LA","Karl Alzner","http://www.cbssports.com/nhl/players/player/gamelogs/2015/1282165/"]
["NYI","http://www.cbssports.com/nhl/teams/page/NYI","Keith Yandle","http://www.cbssports.com/nhl/players/player/gamelogs/2015/566137/"]
["ANA","http://www.cbssports.com/nhl/teams/page/ANA","Kevan Miller","http://www.cbssports.com/nhl/players/player/gamelogs/2015/2094613/"]
["DET","http://www.cbssports.com/nhl/teams/page/DET","Kevin Bieksa","http://www.cbssports.com/nhl/players/player/gamelogs/2015/583339/"]
["OTT","http://www.cbssports.com/nhl/teams/page/OTT","Kevin Connauton","http://www.cbssports.com/nhl/players/player/gamelogs/2015/1707394/"]
["CGY","http://www.cbssports.com/nhl/teams/page/CGY","Kevin Hayes","http://www.cbssports.com/nhl/players/player/gamelogs/2015/2145886/"]
["MON","http://www.cbssports.com/nhl/teams/page/MON","Kevin Klein","http://www.cbssports.com/nhl/players/player/gamelogs/2015/433212/"]
["ARI","http://www.cbssports.com/nhl/teams/page/ARI","Kevin Shattenkirk","http://www.cbssports.com/nhl/players/player/gamelogs/2015/1770986/"]
["NYR","http://www.cbssports.com/nhl/teams/page/NYR","Kris Letang","http://www.cbssports.com/nhl/players/player/gamelogs/2015/566030/"]
["TOR","http://www.cbssports.com/nhl/teams/page/TOR","Kris Russell","http://www.cbssports.com/nhl/players/player/gamelogs/2015/565699/"]
["EDM","http://www.cbssports.com/nhl/teams/page/EDM","Kris Versteeg","http://www.cbssports.com/nhl/players/player/gamelogs/2015/1133626/"]
["VAN","http://www.cbssports.com/nhl/teams/page/VAN","Kyle Chipchura","http://www.cbssports.com/nhl/players/player/gamelogs/2015/566001/"]
["SJ","http://www.cbssports.com/nhl/teams/page/SJ","Kyle Okposo","http://www.cbssports.com/nhl/players/player/gamelogs/2015/1493839/"]
["BOS","http://www.cbssports.com/nhl/teams/page/BOS","Kyle Palmieri","http://www.cbssports.com/nhl/players/player/gamelogs/2015/1770966/"]
["NYI","http://www.cbssports.com/nhl/teams/page/NYI","Kyle Turris","http://www.cbssports.com/nhl/players/player/gamelogs/2015/1606858/"]
["DET","http://www.cbssports.com/nhl/teams/page/DET","Landon Ferraro","http://www.cbssports.com/nhl/players/player/gamelogs/2015/1707403/"]
["PHI","http://www.cbssports.com/nhl/teams/page/PHI","Lars Eller","http://www.cbssports.com/nhl/players/player/gamelogs/2015/1628807/"]
["NYR","http://www.cbssports.com/nhl/teams/page/NYR","Lauri Korpikoski","http://www.cbssports.com/nhl/players/player/gamelogs/2015/1134127/"]
["SJ","http://www.cbssports.com/nhl/teams/page/SJ","Lee Stempniak","http://www.cbssports.com/nhl/players/player/gamelogs/2015/566058/"]
["STL","http://www.cbssports.com/nhl/teams/page/STL","Leo Komarov","http://www.cbssports.com/nhl/players/player/gamelogs/2015/2038244/"]
["MIN","http://www.cbssports.com/nhl/teams/page/MIN","Leon Draisaitl","http://www.cbssports.com/nhl/players/player/gamelogs/2015/2147141/"]
["BUF","http://www.cbssports.com/nhl/teams/page/BUF","Linden Vey","http://www.cbssports.com/nhl/players/player/gamelogs/2015/1707465/"]
["WAS","http://www.cbssports.com/nhl/teams/page/WAS","Logan Couture","http://www.cbssports.com/nhl/players/player/gamelogs/2015/1282170/"]
["CHI","http://www.cbssports.com/nhl/teams/page/CHI","Loui Eriksson","http://www.cbssports.com/nhl/players/player/gamelogs/2015/565668/"]
["NJ","http://www.cbssports.com/nhl/teams/page/NJ","Luke Glendening","http://www.cbssports.com/nhl/players/player/gamelogs/2015/2095135/"]
["LA","http://www.cbssports.com/nhl/teams/page/LA","Luke Schenn","http://www.cbssports.com/nhl/players/player/gamelogs/2015/1628815/"]
["CHI","http://www.cbssports.com/nhl/teams/page/CHI","Marc Methot","http://www.cbssports.com/nhl/players/player/gamelogs/2015/433601/"]
["PIT","http://www.cbssports.com/nhl/teams/page/PIT","Marc Staal","http://www.cbssports.com/nhl/players/player/gamelogs/2015/565423/"]
["CGY","http://www.cbssports.com/nhl/teams/page/CGY","Marc-Edouard Vlasic","http://www.cbssports.com/nhl/players/player/gamelogs/2015/1133727/"]
["CLB","http://www.cbssports.com/nhl/teams/page/CLB","Marco Scandella","http://www.cbssports.com/nhl/players/player/gamelogs/2015/1707453/"]
["WPG","http://www.cbssports.com/nhl/teams/page/WPG","Marcus Foligno","http://www.cbssports.com/nhl/players/player/gamelogs/2015/1707405/"]
["OTT","http://www.cbssports.com/nhl/teams/page/OTT","Marcus Johansson","http://www.cbssports.com/nhl/players/player/gamelogs/2015/1771123/"]
["PHI","http://www.cbssports.com/nhl/teams/page/PHI","Marek Zidlicky","http://www.cbssports.com/nhl/players/player/gamelogs/2015/435315/"]
["WPG","http://www.cbssports.com/nhl/teams/page/WPG","Marian Gaborik","http://www.cbssports.com/nhl/players/player/gamelogs/2015/205109/"]
["CGY","http://www.cbssports.com/nhl/teams/page/CGY","Marian Hossa","http://www.cbssports.com/nhl/players/player/gamelogs/2015/19668/"]
["ARI","http://www.cbssports.com/nhl/teams/page/ARI","Mark Barberio","http://www.cbssports.com/nhl/players/player/gamelogs/2015/1707380/"]
["ARI","http://www.cbssports.com/nhl/teams/page/ARI","Mark Giordano","http://www.cbssports.com/nhl/players/player/gamelogs/2015/435155/"]
["NJ","http://www.cbssports.com/nhl/teams/page/NJ","Mark Letestu","http://www.cbssports.com/nhl/players/player/gamelogs/2015/1713505/"]
["NYR","http://www.cbssports.com/nhl/teams/page/NYR","Mark Scheifele","http://www.cbssports.com/nhl/players/player/gamelogs/2015/1897780/"]
["CGY","http://www.cbssports.com/nhl/teams/page/CGY","Mark Stone","http://www.cbssports.com/nhl/players/player/gamelogs/2015/1770996/"]
["WPG","http://www.cbssports.com/nhl/teams/page/WPG","Mark Streit","http://www.cbssports.com/nhl/players/player/gamelogs/2015/565841/"]
["NYR","http://www.cbssports.com/nhl/teams/page/NYR","Markus Granlund","http://www.cbssports.com/nhl/players/player/gamelogs/2015/2094573/"]
["ANA","http://www.cbssports.com/nhl/teams/page/ANA","Martin Hanzal","http://www.cbssports.com/nhl/players/player/gamelogs/2015/1134121/"]
["CLB","http://www.cbssports.com/nhl/teams/page/CLB","Mathieu Perreault","http://www.cbssports.com/nhl/players/player/gamelogs/2015/1282477/"]
["TB","http://www.cbssports.com/nhl/teams/page/TB","Mats Zuccarello","http://www.cbssports.com/nhl/players/player/gamelogs/2015/1771018/"]
["MIN","http://www.cbssports.com/nhl/teams/page/MIN","Matt Bartkowski","http://www.cbssports.com/nhl/players/player/gamelogs/2015/1770869/"]
["NSH","http://www.cbssports.com/nhl/teams/page/NSH","Matt Beleskey","http://www.cbssports.com/nhl/players/player/gamelogs/2015/1639343/"]
["COL","http://www.cbssports.com/nhl/teams/page/COL","Matt Calvert","http://www.cbssports.com/nhl/players/player/gamelogs/2015/1639361/"]
["EDM","http://www.cbssports.com/nhl/teams/page/EDM","Matt Cullen","http://www.cbssports.com/nhl/players/player/gamelogs/2015/19630/"]
["LA","http://www.cbssports.com/nhl/teams/page/LA","Matt Duchene","http://www.cbssports.com/nhl/players/player/gamelogs/2015/1685404/"]
["WPG","http://www.cbssports.com/nhl/teams/page/WPG","Matt Dumba","http://www.cbssports.com/nhl/players/player/gamelogs/2015/2000654/"]
["EDM","http://www.cbssports.com/nhl/teams/page/EDM","Matt Hendricks","http://www.cbssports.com/nhl/players/player/gamelogs/2015/1286082/"]
["NYR","http://www.cbssports.com/nhl/teams/page/NYR","Matt Hunwick","http://www.cbssports.com/nhl/players/player/gamelogs/2015/1286415/"]
["SJ","http://www.cbssports.com/nhl/teams/page/SJ","Matt Martin","http://www.cbssports.com/nhl/players/player/gamelogs/2015/1639439/"]
["NYI","http://www.cbssports.com/nhl/teams/page/NYI","Matt Moulson","http://www.cbssports.com/nhl/players/player/gamelogs/2015/1137126/"]
["BUF","http://www.cbssports.com/nhl/teams/page/BUF","Matt Nieto","http://www.cbssports.com/nhl/players/player/gamelogs/2015/2094796/"]
["SJ","http://www.cbssports.com/nhl/teams/page/SJ","Matt Niskanen","http://www.cbssports.com/nhl/players/player/gamelogs/2015/1282446/"]
["WAS","http://www.cbssports.com/nhl/teams/page/WAS","Matt Read","http://www.cbssports.com/nhl/players/player/gamelogs/2015/1897766/"]
["PHI","http://www.cbssports.com/nhl/teams/page/PHI","Matt Stajan","http://www.cbssports.com/nhl/players/player/gamelogs/2015/367817/"]
["CGY","http://www.cbssports.com/nhl/teams/page/CGY","Mattias Ekholm","http://www.cbssports.com/nhl/players/player/gamelogs/2015/1897652/"]
["SJ","http://www.cbssports.com/nhl/teams/page/SJ","Mattias Janmark","http://www.cbssports.com/nhl/players/player/gamelogs/2015/2197831/"]
["NSH","http://www.cbssports.com/nhl/teams/page/NSH","Max Domi","http://www.cbssports.com/nhl/players/player/gamelogs/2015/2076018/"]
["MON","http://www.cbssports.com/nhl/teams/page/MON","Max Pacioretty","http://www.cbssports.com/nhl/players/player/gamelogs/2015/1628813/"]
["PIT","http://www.cbssports.com/nhl/teams/page/PIT","Melker Karlsson","http://www.cbssports.com/nhl/players/player/gamelogs/2015/2147185/"]
["COL","http://www.cbssports.com/nhl/teams/page/COL","Michael Cammalleri","http://www.cbssports.com/nhl/players/player/gamelogs/2015/368971/"]
["SJ","http://www.cbssports.com/nhl/teams/page/SJ","Michael Del Zotto","http://www.cbssports.com/nhl/players/player/gamelogs/2015/1639380/"]
["PHI","http://www.cbssports.com/nhl/teams/page/PHI","Michael Frolik","http://www.cbssports.com/nhl/players/player/gamelogs/2015/1282428/"]
["WPG","http://www.cbssports.com/nhl/teams/page/WPG","Michael Grabner","http://www.cbssports.com/nhl/players/player/gamelogs/2015/1133704/"]
["NYI","http://www.cbssports.com/nhl/teams/page/NYI","Michael Raffl","http://www.cbssports.com/nhl/players/player/gamelogs/2015/2095287/"]
["PHI","http://www.cbssports.com/nhl/teams/page/PHI","Michael Stone","http://www.cbssports.com/nhl/players/player/gamelogs/2015/1639486/"]
["NJ","http://www.cbssports.com/nhl/teams/page/NJ","Michal Rozsival","http://www.cbssports.com/nhl/players/player/gamelogs/2015/20109/"]
["ARI","http://www.cbssports.com/nhl/teams/page/ARI","Micheal Ferland","http://www.cbssports.com/nhl/players/player/gamelogs/2015/1769712/"]
["OTT","http://www.cbssports.com/nhl/teams/page/OTT","Miikka Salomaki","http://www.cbssports.com/nhl/players/player/gamelogs/2015/2094638/"]
["CGY","http://www.cbssports.com/nhl/teams/page/CGY","Mika Zibanejad","http://www.cbssports.com/nhl/players/player/gamelogs/2015/1897821/"]
["MIN","http://www.cbssports.com/nhl/teams/page/MIN","Mikael Backlund","http://www.cbssports.com/nhl/players/player/gamelogs/2015/1280555/"]
["NJ","http://www.cbssports.com/nhl/teams/page/NJ","Mikael Granlund","http://www.cbssports.com/nhl/players/player/gamelogs/2015/2036205/"]
["NSH","http://www.cbssports.com/nhl/teams/page/NSH","Mike Fisher","http://www.cbssports.com/nhl/players/player/gamelogs/2015/20424/"]
["WAS","http://www.cbssports.com/nhl/teams/page/WAS","Mike Green","http://www.cbssports.com/nhl/players/player/gamelogs/2015/565379/"]
["OTT","http://www.cbssports.com/nhl/teams/page/OTT","Mike Hoffman","http://www.cbssports.com/nhl/players/player/gamelogs/2015/1137449/"]
["NSH","http://www.cbssports.com/nhl/teams/page/NSH","Mike Ribeiro","http://www.cbssports.com/nhl/players/player/gamelogs/2015/152183/"]
["LA","http://www.cbssports.com/nhl/teams/page/LA","Mike Santorelli","http://www.cbssports.com/nhl/players/player/gamelogs/2015/1280604/"]
["TOR","http://www.cbssports.com/nhl/teams/page/TOR","Mikhail Grabovski","http://www.cbssports.com/nhl/players/player/gamelogs/2015/1134118/"]
["NYI","http://www.cbssports.com/nhl/teams/page/NYI","Mikhail Grigorenko","http://www.cbssports.com/nhl/players/player/gamelogs/2015/2000660/"]
["ARI","http://www.cbssports.com/nhl/teams/page/ARI","Mikkel Boedker","http://www.cbssports.com/nhl/players/player/gamelogs/2015/1628803/"]
["MIN","http://www.cbssports.com/nhl/teams/page/MIN","Mikko Koivu","http://www.cbssports.com/nhl/players/player/gamelogs/2015/566114/"]
["BOS","http://www.cbssports.com/nhl/teams/page/BOS","Milan Lucic","http://www.cbssports.com/nhl/players/player/gamelogs/2015/1133424/"]
["OTT","http://www.cbssports.com/nhl/teams/page/OTT","Milan Michalek","http://www.cbssports.com/nhl/players/player/gamelogs/2015/433214/"]
["TOR","http://www.cbssports.com/nhl/teams/page/TOR","Morgan Rielly","http://www.cbssports.com/nhl/players/player/gamelogs/2015/2000673/"]
["EDM","http://www.cbssports.com/nhl/teams/page/EDM","Nail Yakupov","http://www.cbssports.com/nhl/players/player/gamelogs/2015/2000682/"]
["COL","http://www.cbssports.com/nhl/teams/page/COL","Nate Schmidt","http://www.cbssports.com/nhl/players/player/gamelogs/2015/2094805/"]
["ANA","http://www.cbssports.com/nhl/teams/page/ANA","Nathan Beaulieu","http://www.cbssports.com/nhl/players/player/gamelogs/2015/1897604/"]
["CAR","http://www.cbssports.com/nhl/teams/page/CAR","Nathan MacKinnon","http://www.cbssports.com/nhl/players/player/gamelogs/2015/2076027/"]
["COL","http://www.cbssports.com/nhl/teams/page/COL","Nazem Kadri","http://www.cbssports.com/nhl/players/player/gamelogs/2015/1707417/"]
["TOR","http://www.cbssports.com/nhl/teams/page/TOR","Nick Bjugstad","http://www.cbssports.com/nhl/players/player/gamelogs/2015/2054009/"]
["FLA","http://www.cbssports.com/nhl/teams/page/FLA","Nick Bonino","http://www.cbssports.com/nhl/players/player/gamelogs/2015/1743550/"]
["VAN","http://www.cbssports.com/nhl/teams/page/VAN","Nick Cousins","http://www.cbssports.com/nhl/players/player/gamelogs/2015/1897633/"]
["CLB","http://www.cbssports.com/nhl/teams/page/CLB","Nick Foligno","http://www.cbssports.com/nhl/players/player/gamelogs/2015/1133703/"]
["COL","http://www.cbssports.com/nhl/teams/page/COL","Nick Holden","http://www.cbssports.com/nhl/players/player/gamelogs/2015/1639719/"]
["NYI","http://www.cbssports.com/nhl/teams/page/NYI","Nick Leddy","http://www.cbssports.com/nhl/players/player/gamelogs/2015/1770942/"]
["PHI","http://www.cbssports.com/nhl/teams/page/PHI","Nick Schultz","http://www.cbssports.com/nhl/players/player/gamelogs/2015/205123/"]
["PIT","http://www.cbssports.com/nhl/teams/page/PIT","Nick Shore","http://www.cbssports.com/nhl/players/player/gamelogs/2015/2094643/"]
["WAS","http://www.cbssports.com/nhl/teams/page/WAS","Nick Spaling","http://www.cbssports.com/nhl/players/player/gamelogs/2015/1280609/"]
["PHI","http://www.cbssports.com/nhl/teams/page/PHI","Nicklas Backstrom","http://www.cbssports.com/nhl/players/player/gamelogs/2015/1133460/"]
["BUF","http://www.cbssports.com/nhl/teams/page/BUF","Nicolas Deslauriers","http://www.cbssports.com/nhl/players/player/gamelogs/2015/1707397/"]
["TB","http://www.cbssports.com/nhl/teams/page/TB","Nikita Kucherov","http://www.cbssports.com/nhl/players/player/gamelogs/2015/2094594/"]
["EDM","http://www.cbssports.com/nhl/teams/page/EDM","Niklas Hjalmarsson","http://www.cbssports.com/nhl/players/player/gamelogs/2015/1282431/"]
["BUF","http://www.cbssports.com/nhl/teams/page/BUF","Niklas Kronwall","http://www.cbssports.com/nhl/players/player/gamelogs/2015/435194/"]
["CHI","http://www.cbssports.com/nhl/teams/page/CHI","Nikolaj Ehlers","http://www.cbssports.com/nhl/players/player/gamelogs/2015/2147336/"]
["DET","http://www.cbssports.com/nhl/teams/page/DET","Nikolay Kulemin","http://www.cbssports.com/nhl/players/player/gamelogs/2015/1639425/"]
["NYI","http://www.cbssports.com/nhl/teams/page/NYI","Nino Niederreiter","http://www.cbssports.com/nhl/players/player/gamelogs/2015/1765199/"]
["MIN","http://www.cbssports.com/nhl/teams/page/MIN","Noah Hanifin","http://www.cbssports.com/nhl/players/player/gamelogs/2015/2178823/"]
["ARI","http://www.cbssports.com/nhl/teams/page/ARI","Oliver Ekman-Larsson","http://www.cbssports.com/nhl/players/player/gamelogs/2015/1765197/"]
["PIT","http://www.cbssports.com/nhl/teams/page/PIT","Olli Maatta","http://www.cbssports.com/nhl/players/player/gamelogs/2015/2000666/"]
["TB","http://www.cbssports.com/nhl/teams/page/TB","Ondrej Palat","http://www.cbssports.com/nhl/players/player/gamelogs/2015/1897753/"]
["EDM","http://www.cbssports.com/nhl/teams/page/EDM","Oscar Klefbom","http://www.cbssports.com/nhl/players/player/gamelogs/2015/2094999/"]
["MON","http://www.cbssports.com/nhl/teams/page/MON","Oscar Lindberg","http://www.cbssports.com/nhl/players/player/gamelogs/2015/2094605/"]
["MON","http://www.cbssports.com/nhl/teams/page/MON","P.A. Parenteau","http://www.cbssports.com/nhl/players/player/gamelogs/2015/273227/"]
["PIT","http://www.cbssports.com/nhl/teams/page/PIT","P.K. Subban","http://www.cbssports.com/nhl/players/player/gamelogs/2015/1282455/"]
["PIT","http://www.cbssports.com/nhl/teams/page/PIT","Patric Hornqvist","http://www.cbssports.com/nhl/players/player/gamelogs/2015/1280574/"]
["BOS","http://www.cbssports.com/nhl/teams/page/BOS","Patrice Bergeron","http://www.cbssports.com/nhl/players/player/gamelogs/2015/433588/"]
["CAR","http://www.cbssports.com/nhl/teams/page/CAR","Patrick Eaves","http://www.cbssports.com/nhl/players/player/gamelogs/2015/563440/"]
["DAL","http://www.cbssports.com/nhl/teams/page/DAL","Patrick Kane","http://www.cbssports.com/nhl/players/player/gamelogs/2015/1240390/"]
["CHI","http://www.cbssports.com/nhl/teams/page/CHI","Patrick Marleau","http://www.cbssports.com/nhl/players/player/gamelogs/2015/19674/"]
["SJ","http://www.cbssports.com/nhl/teams/page/SJ","Patrick Maroon","http://www.cbssports.com/nhl/players/player/gamelogs/2015/1280586/"]
["ANA","http://www.cbssports.com/nhl/teams/page/ANA","Patrick Sharp","http://www.cbssports.com/nhl/players/player/gamelogs/2015/369012/"]
["CHI","http://www.cbssports.com/nhl/teams/page/CHI","Patrik Berglund","http://www.cbssports.com/nhl/players/player/gamelogs/2015/1282417/"]
["STL","http://www.cbssports.com/nhl/teams/page/STL","Paul Byron","http://www.cbssports.com/nhl/players/player/gamelogs/2015/1282169/"]
["NJ","http://www.cbssports.com/nhl/teams/page/NJ","Paul Martin","http://www.cbssports.com/nhl/players/player/gamelogs/2015/435220/"]
["CGY","http://www.cbssports.com/nhl/teams/page/CGY","Paul Stastny","http://www.cbssports.com/nhl/players/player/gamelogs/2015/1114920/"]
["NSH","http://www.cbssports.com/nhl/teams/page/NSH","Pavel Datsyuk","http://www.cbssports.com/nhl/players/player/gamelogs/2015/274244/"]
["PIT","http://www.cbssports.com/nhl/teams/page/PIT","Peter Holland","http://www.cbssports.com/nhl/players/player/gamelogs/2015/1707560/"]
["STL","http://www.cbssports.com/nhl/teams/page/STL","Phil Di Giuseppe","http://www.cbssports.com/nhl/players/player/gamelogs/2015/2147137/"]
["DET","http://www.cbssports.com/nhl/teams/page/DET","Phil Kessel","http://www.cbssports.com/nhl/players/player/gamelogs/2015/1133422/"]
["TOR","http://www.cbssports.com/nhl/teams/page/TOR","Phillip Danault","http://www.cbssports.com/nhl/players/player/gamelogs/2015/1899080/"]
["TOR","http://www.cbssports.com/nhl/teams/page/TOR","Pierre-Edouard Bellemare","http://www.cbssports.com/nhl/players/player/gamelogs/2015/2147108/"]
["PHI","http://www.cbssports.com/nhl/teams/page/PHI","Quinton Howden","http://www.cbssports.com/nhl/players/player/gamelogs/2015/1770928/"]
["PHI","http://www.cbssports.com/nhl/teams/page/PHI","R.J. Umberger","http://www.cbssports.com/nhl/players/player/gamelogs/2015/564980/"]
["VAN","http://www.cbssports.com/nhl/teams/page/VAN","Radim Vrbata","http://www.cbssports.com/nhl/players/player/gamelogs/2015/151231/"]
["BUF","http://www.cbssports.com/nhl/teams/page/BUF","Radko Gudas","http://www.cbssports.com/nhl/players/player/gamelogs/2015/1770919/"]
["BOS","http://www.cbssports.com/nhl/teams/page/BOS","Rasmus Ristolainen","http://www.cbssports.com/nhl/players/player/gamelogs/2015/2076038/"]
["ANA","http://www.cbssports.com/nhl/teams/page/ANA","Reid Boucher","http://www.cbssports.com/nhl/players/player/gamelogs/2015/1897611/"]
["TOR","http://www.cbssports.com/nhl/teams/page/TOR","Reilly Smith","http://www.cbssports.com/nhl/players/player/gamelogs/2015/1960631/"]
["NYR","http://www.cbssports.com/nhl/teams/page/NYR","Rick Nash","http://www.cbssports.com/nhl/players/player/gamelogs/2015/346970/"]
["ANA","http://www.cbssports.com/nhl/teams/page/ANA","Rickard Rakell","http://www.cbssports.com/nhl/players/player/gamelogs/2015/1899132/"]
["CAR","http://www.cbssports.com/nhl/teams/page/CAR","Riley Nash","http://www.cbssports.com/nhl/players/player/gamelogs/2015/1770957/"]
["DET","http://www.cbssports.com/nhl/teams/page/DET","Riley Sheahan","http://www.cbssports.com/nhl/players/player/gamelogs/2015/1964559/"]
["EDM","http://www.cbssports.com/nhl/teams/page/EDM","Robby Fabbri","http://www.cbssports.com/nhl/players/player/gamelogs/2015/2147285/"]
["NSH","http://www.cbssports.com/nhl/teams/page/NSH","Roman Josi","http://www.cbssports.com/nhl/players/player/gamelogs/2015/1770931/"]
["TOR","http://www.cbssports.com/nhl/teams/page/TOR","Roman Polak","http://www.cbssports.com/nhl/players/player/gamelogs/2015/1134147/"]
["TB","http://www.cbssports.com/nhl/teams/page/TB","Ron Hainsey","http://www.cbssports.com/nhl/players/player/gamelogs/2015/274035/"]
["MIN","http://www.cbssports.com/nhl/teams/page/MIN","Ryan Callahan","http://www.cbssports.com/nhl/players/player/gamelogs/2015/566093/"]
["NSH","http://www.cbssports.com/nhl/teams/page/NSH","Ryan Carter","http://www.cbssports.com/nhl/players/player/gamelogs/2015/1137120/"]
["DAL","http://www.cbssports.com/nhl/teams/page/DAL","Ryan Ellis","http://www.cbssports.com/nhl/players/player/gamelogs/2015/1707401/"]
["ANA","http://www.cbssports.com/nhl/teams/page/ANA","Ryan Garbutt","http://www.cbssports.com/nhl/players/player/gamelogs/2015/1897665/"]
["CLB","http://www.cbssports.com/nhl/teams/page/CLB","Ryan Getzlaf","http://www.cbssports.com/nhl/players/player/gamelogs/2015/433595/"]
["ANA","http://www.cbssports.com/nhl/teams/page/ANA","Ryan Johansen","http://www.cbssports.com/nhl/players/player/gamelogs/2015/1769716/"]
["NYR","http://www.cbssports.com/nhl/teams/page/NYR","Ryan Kesler","http://www.cbssports.com/nhl/players/player/gamelogs/2015/433666/"]
["CAR","http://www.cbssports.com/nhl/teams/page/CAR","Ryan McDonagh","http://www.cbssports.com/nhl/players/player/gamelogs/2015/1757711/"]
["EDM","http://www.cbssports.com/nhl/teams/page/EDM","Ryan Murray","http://www.cbssports.com/nhl/players/player/gamelogs/2015/2000669/"]
["COL","http://www.cbssports.com/nhl/teams/page/COL","Ryan Nugent-Hopkins","http://www.cbssports.com/nhl/players/player/gamelogs/2015/1899125/"]
["STL","http://www.cbssports.com/nhl/teams/page/STL","Ryan O'Reilly","http://www.cbssports.com/nhl/players/player/gamelogs/2015/1707441/"]
["VAN","http://www.cbssports.com/nhl/teams/page/VAN","Ryan Spooner","http://www.cbssports.com/nhl/players/player/gamelogs/2015/1769728/"]
["NYI","http://www.cbssports.com/nhl/teams/page/NYI","Ryan Strome","http://www.cbssports.com/nhl/players/player/gamelogs/2015/1897797/"]
["MIN","http://www.cbssports.com/nhl/teams/page/MIN","Ryan Suter","http://www.cbssports.com/nhl/players/player/gamelogs/2015/565842/"]
["ARI","http://www.cbssports.com/nhl/teams/page/ARI","Ryan White","http://www.cbssports.com/nhl/players/player/gamelogs/2015/1282461/"]
["ANA","http://www.cbssports.com/nhl/teams/page/ANA","Sam Bennett","http://www.cbssports.com/nhl/players/player/gamelogs/2015/2147081/"]
["NJ","http://www.cbssports.com/nhl/teams/page/NJ","Sam Gagner","http://www.cbssports.com/nhl/players/player/gamelogs/2015/1280567/"]
["CLB","http://www.cbssports.com/nhl/teams/page/CLB","Sam Reinhart","http://www.cbssports.com/nhl/players/player/gamelogs/2015/2147496/"]
["FLA","http://www.cbssports.com/nhl/teams/page/FLA","Sami Vatanen","http://www.cbssports.com/nhl/players/player/gamelogs/2015/2039465/"]
["FLA","http://www.cbssports.com/nhl/teams/page/FLA","Scott Gomez","http://www.cbssports.com/nhl/players/player/gamelogs/2015/20431/"]
["PHI","http://www.cbssports.com/nhl/teams/page/PHI","Scott Hartnell","http://www.cbssports.com/nhl/players/player/gamelogs/2015/204569/"]
["CGY","http://www.cbssports.com/nhl/teams/page/CGY","Scott Laughton","http://www.cbssports.com/nhl/players/player/gamelogs/2015/2000664/"]
["MON","http://www.cbssports.com/nhl/teams/page/MON","Scottie Upshall","http://www.cbssports.com/nhl/players/player/gamelogs/2015/347857/"]
["BOS","http://www.cbssports.com/nhl/teams/page/BOS","Sean Couturier","http://www.cbssports.com/nhl/players/player/gamelogs/2015/1897634/"]
["NSH","http://www.cbssports.com/nhl/teams/page/NSH","Sean Monahan","http://www.cbssports.com/nhl/players/player/gamelogs/2015/2076030/"]
["ARI","http://www.cbssports.com/nhl/teams/page/ARI","Sergey Kalinin","http://www.cbssports.com/nhl/players/player/gamelogs/2015/2198225/"]
["DAL","http://www.cbssports.com/nhl/teams/page/DAL","Seth Jones","http://www.cbssports.com/nhl/players/player/gamelogs/2015/2076023/"]
["VAN","http://www.cbssports.com/nhl/teams/page/VAN","Shane Doan","http://www.cbssports.com/nhl/players/player/gamelogs/2015/19368/"]
["NSH","http://www.cbssports.com/nhl/teams/page/NSH","Shane Prince","http://www.cbssports.com/nhl/players/player/gamelogs/2015/1897762/"]
["PIT","http://www.cbssports.com/nhl/teams/page/PIT","Shawn Horcoff","http://www.cbssports.com/nhl/players/player/gamelogs/2015/204580/"]
["PIT","http://www.cbssports.com/nhl/teams/page/PIT","Shawn Matthias","http://www.cbssports.com/nhl/players/player/gamelogs/2015/1133476/"]
["DET","http://www.cbssports.com/nhl/teams/page/DET","Shayne Gostisbehere","http://www.cbssports.com/nhl/players/player/gamelogs/2015/2146558/"]
["NJ","http://www.cbssports.com/nhl/teams/page/NJ","Shea Weber","http://www.cbssports.com/nhl/players/player/gamelogs/2015/433220/"]
["PIT","http://www.cbssports.com/nhl/teams/page/PIT","Sidney Crosby","http://www.cbssports.com/nhl/players/player/gamelogs/2015/559301/"]
["STL","http://www.cbssports.com/nhl/teams/page/STL","Stephen Gionta","http://www.cbssports.com/nhl/players/player/gamelogs/2015/1133593/"]
["TB","http://www.cbssports.com/nhl/teams/page/TB","Steven Stamkos","http://www.cbssports.com/nhl/players/player/gamelogs/2015/1628816/"]
["CGY","http://www.cbssports.com/nhl/teams/page/CGY","Sven Andrighetto","http://www.cbssports.com/nhl/players/player/gamelogs/2015/2094531/"]
["STL","http://www.cbssports.com/nhl/teams/page/STL","Sven Baertschi","http://www.cbssports.com/nhl/players/player/gamelogs/2015/1899072/"]
["LA","http://www.cbssports.com/nhl/teams/page/LA","T.J. Brodie","http://www.cbssports.com/nhl/players/player/gamelogs/2015/1639357/"]
["NSH","http://www.cbssports.com/nhl/teams/page/NSH","T.J. Oshie","http://www.cbssports.com/nhl/players/player/gamelogs/2015/1628812/"]
["EDM","http://www.cbssports.com/nhl/teams/page/EDM","Tanner Pearson","http://www.cbssports.com/nhl/players/player/gamelogs/2015/2000670/"]
["EDM","http://www.cbssports.com/nhl/teams/page/EDM","Taylor Hall","http://www.cbssports.com/nhl/players/player/gamelogs/2015/1757713/"]
["NYI","http://www.cbssports.com/nhl/teams/page/NYI","Teddy Purcell","http://www.cbssports.com/nhl/players/player/gamelogs/2015/1283869/"]
["MIN","http://www.cbssports.com/nhl/teams/page/MIN","Teemu Pulkkinen","http://www.cbssports.com/nhl/players/player/gamelogs/2015/2094631/"]
["CAR","http://www.cbssports.com/nhl/teams/page/CAR","Teuvo Teravainen","http://www.cbssports.com/nhl/players/player/gamelogs/2015/2000678/"]
["WPG","http://www.cbssports.com/nhl/teams/page/WPG","Thomas Hickey","http://www.cbssports.com/nhl/players/player/gamelogs/2015/1280571/"]
["ARI","http://www.cbssports.com/nhl/teams/page/ARI","Thomas Vanek","http://www.cbssports.com/nhl/players/player/gamelogs/2015/565429/"]
["MON","http://www.cbssports.com/nhl/teams/page/MON","Tobias Rieder","http://www.cbssports.com/nhl/players/player/gamelogs/2015/2094635/"]
["WAS","http://www.cbssports.com/nhl/teams/page/WAS","Toby Enstrom","http://www.cbssports.com/nhl/players/player/gamelogs/2015/1286081/"]
["FLA","http://www.cbssports.com/nhl/teams/page/FLA","Tom Kuhnhackl","http://www.cbssports.com/nhl/players/player/gamelogs/2015/2094595/"]
["SJ","http://www.cbssports.com/nhl/teams/page/SJ","Tom Wilson","http://www.cbssports.com/nhl/players/player/gamelogs/2015/2000681/"]
["DET","http://www.cbssports.com/nhl/teams/page/DET","Tomas Fleischmann","http://www.cbssports.com/nhl/players/player/gamelogs/2015/369707/"]
["FLA","http://www.cbssports.com/nhl/teams/page/FLA","Tomas Hertl","http://www.cbssports.com/nhl/players/player/gamelogs/2015/2000661/"]
["MON","http://www.cbssports.com/nhl/teams/page/MON","Tomas Plekanec","http://www.cbssports.com/nhl/players/player/gamelogs/2015/369005/"]
["DET","http://www.cbssports.com/nhl/teams/page/DET","Tomas Tatar","http://www.cbssports.com/nhl/players/player/gamelogs/2015/1707461/"]
["SJ","http://www.cbssports.com/nhl/teams/page/SJ","Tommy Wingels","http://www.cbssports.com/nhl/players/player/gamelogs/2015/1771015/"]
["BOS","http://www.cbssports.com/nhl/teams/page/BOS","Torey Krug","http://www.cbssports.com/nhl/players/player/gamelogs/2015/1960399/"]
["BUF","http://www.cbssports.com/nhl/teams/page/BUF","Torrey Mitchell","http://www.cbssports.com/nhl/players/player/gamelogs/2015/1285575/"]
["NYI","http://www.cbssports.com/nhl/teams/page/NYI","Travis Hamonic","http://www.cbssports.com/nhl/players/player/gamelogs/2015/1639403/"]
["NJ","http://www.cbssports.com/nhl/teams/page/NJ","Travis Zajac","http://www.cbssports.com/nhl/players/player/gamelogs/2015/1134161/"]
["DAL","http://www.cbssports.com/nhl/teams/page/DAL","Trevor Daley","http://www.cbssports.com/nhl/players/player/gamelogs/2015/346966/"]
["LA","http://www.cbssports.com/nhl/teams/page/LA","Trevor Lewis","http://www.cbssports.com/nhl/players/player/gamelogs/2015/1133473/"]
["WAS","http://www.cbssports.com/nhl/teams/page/WAS","Trevor van Riemsdyk","http://www.cbssports.com/nhl/players/player/gamelogs/2015/2147580/"]
["NJ","http://www.cbssports.com/nhl/teams/page/NJ","Troy Brouwer","http://www.cbssports.com/nhl/players/player/gamelogs/2015/565363/"]
["TOR","http://www.cbssports.com/nhl/teams/page/TOR","Tyler Bozak","http://www.cbssports.com/nhl/players/player/gamelogs/2015/1707849/"]
["BUF","http://www.cbssports.com/nhl/teams/page/BUF","Tyler Ennis","http://www.cbssports.com/nhl/players/player/gamelogs/2015/1639390/"]
["TB","http://www.cbssports.com/nhl/teams/page/TB","Tyler Johnson","http://www.cbssports.com/nhl/players/player/gamelogs/2015/1903257/"]
["SJ","http://www.cbssports.com/nhl/teams/page/SJ","Tyler Kennedy","http://www.cbssports.com/nhl/players/player/gamelogs/2015/566022/"]
["BUF","http://www.cbssports.com/nhl/teams/page/BUF","Tyler Myers","http://www.cbssports.com/nhl/players/player/gamelogs/2015/1639453/"]
["DAL","http://www.cbssports.com/nhl/teams/page/DAL","Tyler Seguin","http://www.cbssports.com/nhl/players/player/gamelogs/2015/1757712/"]
["LA","http://www.cbssports.com/nhl/teams/page/LA","Tyler Toffoli","http://www.cbssports.com/nhl/players/player/gamelogs/2015/1771005/"]
["COL","http://www.cbssports.com/nhl/teams/page/COL","Tyson Barrie","http://www.cbssports.com/nhl/players/player/gamelogs/2015/1707381/"]
["TB","http://www.cbssports.com/nhl/teams/page/TB","Valeri Nichushkin","http://www.cbssports.com/nhl/players/player/gamelogs/2015/2076034/"]
["DAL","http://www.cbssports.com/nhl/teams/page/DAL","Valtteri Filppula","http://www.cbssports.com/nhl/players/player/gamelogs/2015/566179/"]
["NSH","http://www.cbssports.com/nhl/teams/page/NSH","Vernon Fiddler","http://www.cbssports.com/nhl/players/player/gamelogs/2015/371777/"]
["TB","http://www.cbssports.com/nhl/teams/page/TB","Victor Hedman","http://www.cbssports.com/nhl/players/player/gamelogs/2015/1685405/"]
["CAR","http://www.cbssports.com/nhl/teams/page/CAR","Victor Rask","http://www.cbssports.com/nhl/players/player/gamelogs/2015/1897763/"]
["PHI","http://www.cbssports.com/nhl/teams/page/PHI","Viktor Arvidsson","http://www.cbssports.com/nhl/players/player/gamelogs/2015/2146553/"]
["FLA","http://www.cbssports.com/nhl/teams/page/FLA","Viktor Stalberg","http://www.cbssports.com/nhl/players/player/gamelogs/2015/1707857/"]
["STL","http://www.cbssports.com/nhl/teams/page/STL","Vincent Lecavalier","http://www.cbssports.com/nhl/players/player/gamelogs/2015/20464/"]
["PHI","http://www.cbssports.com/nhl/teams/page/PHI","Vincent Trocheck","http://www.cbssports.com/nhl/players/player/gamelogs/2015/1897806/"]
["VAN","http://www.cbssports.com/nhl/teams/page/VAN","Vladimir Tarasenko","http://www.cbssports.com/nhl/players/player/gamelogs/2015/1778768/"]
["WPG","http://www.cbssports.com/nhl/teams/page/WPG","Vladislav Namestnikov","http://www.cbssports.com/nhl/players/player/gamelogs/2015/1897737/"]
["MIN","http://www.cbssports.com/nhl/teams/page/MIN","Wayne Simmonds","http://www.cbssports.com/nhl/players/player/gamelogs/2015/1280606/"]
["COL","http://www.cbssports.com/nhl/teams/page/COL","William Karlsson","http://www.cbssports.com/nhl/players/player/gamelogs/2015/2147184/"]
["VAN","http://www.cbssports.com/nhl/teams/page/VAN","Zach Bogosian","http://www.cbssports.com/nhl/players/player/gamelogs/2015/1628804/"]
["ARI","http://www.cbssports.com/nhl/teams/page/ARI","Zach Parise","http://www.cbssports.com/nhl/players/player/gamelogs/2015/557239/"]
["BOS","http://www.cbssports.com/nhl/teams/page/BOS","Zack Smith","http://www.cbssports.com/nhl/players/player/gamelogs/2015/1639481/"]
["BUF","http://www.cbssports.com/nhl/teams/page/BUF","Zdeno Chara","http://www.cbssports.com/nhl/players/player/gamelogs/2015/19791/"]
[null,null,"Zemgus Girgensons","http://www.cbssports.com/nhl/players/player/gamelogs/2015/2000659/"]

{"sheet":"Log","index":1,"n_rows":120,"n_cols":19,"rows_kept":120,"cut":false,"hidden":false,"merged":[]}
[null,null,null,null,null,null,null,null,null,null,null,null,null,null,null,null,null,null,"ESTOI"]
["2016-10-10","vs NJ","W 5-3",1,1,2,1,4,25,0,1,0,0,0,0,"21:02:00","05:51:00","00:00:00"]
["2016-10-15","vs CHI","W 4-1",1,0,1,0,6,16.7,0,0,0,0,0,2,"20:09:00","02:17:00","00:00:00",{"$f":"P3-(Q3+R3)","v":"17:52:00"}]
["2016-10-17","vs CAR","W 4-1",1,0,1,1,4,25,0,0,0,0,0,0,"18:34:00","01:56:00","00:00:00",{"$f":"P4-(Q4+R4)","v":"16:38:00"}]
["2016-10-20","@ CGY","W 6-2",1,1,2,1,7,14.3,0,0,0,0,0,0,"17:35:00","03:46:00","00:08:00","13:41:00"]
["2016-10-22","@ VAN","W 3-2",1,0,1,0,7,14.3,0,0,0,0,1,0,"19:13:00","03:49:00","00:00:00","15:24:00"]
["2016-10-23","@ EDM","W 7-4",0,2,2,2,4,0,0,0,0,0,0,0,"19:33:00","04:49:00","00:00:00","14:44:00"]
["2016-10-28","vs PIT","L 3-1",0,0,0,-1,5,0,0,0,0,0,0,0,"22:27:00","06:00:00","00:00:00","16:27:00"]
["2016-10-30","vs CLB","W 2-1",0,1,1,1,2,0,0,0,0,0,0,0,"20:52:00","03:31:00","00:00:00","17:21:00"]
["2016-10-31","@ FLA","W 2-1 (OT)",0,2,2,1,2,0,0,0,0,0,0,0,"21:06:00","03:59:00","00:00:00","17:07:00"]
["2016-11-03","@ NYR","L 5-2",1,0,1,0,8,12.5,0,0,0,0,0,0,"20:13:00","03:40:00","00:00:00","16:33:00"]
["2016-11-05","vs BOS","W 4-1",1,0,1,2,5,20,0,0,0,0,0,0,"21:56:00","05:49:00","00:00:00","16:07:00"]
["2016-11-07","vs TOR","W 3-2 (SO)",1,1,2,0,8,12.5,1,0,0,0,0,0,"23:35:00","08:07:00","00:00:00","15:28:00"]
["2016-11-10","@ DET","L 1-0",0,0,0,-1,15,0,0,0,0,0,0,0,1.0298611111111111,"05:08:00","00:00:00","19:35:00"]
["2016-11-12","@ PHI","W 5-2",0,0,0,1,2,0,0,0,0,0,0,0,"17:22:00","03:52:00","00:00:00","13:30:00"]
["2016-11-13","vs CGY","L 3-2 (OT)",0,0,0,0,3,0,0,0,0,0,0,0,"18:39:00","01:58:00","00:00:00","16:41:00"]
["2016-11-18","@ DET","W 2-1 (OT)",0,0,0,0,6,0,0,0,0,0,0,0,"21:59:00","10:59:00","00:00:00","11:00:00"]
["2016-11-19","vs DAL","L 3-2",1,0,1,2,4,25,0,0,0,0,0,0,"16:11:00","00:00:00","00:00:00","16:11:00"]
["2016-11-21","vs COL","W 7-3",1,1,2,1,4,25,0,0,0,0,0,0,"20:34:00","04:11:00","00:00:00","16:23:00"]
["2016-11-23","vs EDM","W 1-0",0,0,0,0,5,0,0,0,0,0,0,0,"20:28:00","03:21:00","00:00:00","17:07:00"]
["2016-11-25","vs WPG","W 5-3",1,0,1,0,8,12.5,1,0,0,0,0,2,"22:02:00","02:59:00","00:00:00","19:03:00"]
["2016-11-27","vs TB","W 4-2",1,0,1,0,6,16.7,1,0,0,0,0,2,"23:00:00","07:04:00","00:00:00","15:56:00"]
["2016-11-28","@ TOR","W 4-2",0,1,1,1,3,0,0,1,0,0,0,2,"21:57:00","03:14:00","00:00:00","18:43:00"]
["2016-12-03","@ MON","W 3-2",0,1,1,1,1,0,0,0,0,0,0,0,"20:29:00","04:41:00","00:00:00","15:48:00"]
["2016-12-05","@ WPG","L 2-1 (OT)",0,0,0,0,5,0,0,0,0,0,0,0,"21:42:00","04:37:00","00:00:00","17:05:00"]
["2016-12-08","vs DET","W 3-2 (SO)",1,0,1,0,8,12.5,1,0,0,0,0,2,1.0715277777777776,"06:32:00","00:00:00","19:11:00"]
["2016-12-10","@ FLA","L 4-1",1,0,1,-1,5,20,0,0,0,0,0,4,"21:20:00","06:10:00","00:00:00","15:10:00"]
["2016-12-12","@ TB","W 2-1",0,0,0,0,1,0,0,0,0,0,0,0,"19:18:00","02:50:00","00:04:00","16:24:00"]
["2016-12-14","@ PIT","W 4-1",0,0,0,1,5,0,0,0,0,0,0,0,"20:21:00","04:25:00","00:00:00","15:56:00"]
["2016-12-16","vs OTT","W 2-1",0,0,0,1,3,0,0,0,0,0,0,0,"19:15:00","01:39:00","00:00:00","17:36:00"]
["2016-12-18","vs TB","W 5-3",2,2,4,1,9,22.2,2,1,0,0,0,2,"19:08:00","04:09:00","00:00:00","14:59:00"]
["2016-12-20","@ NYR","W 7-3",1,0,1,0,5,20,1,0,0,0,1,2,"17:21:00","03:40:00","00:00:00","13:41:00"]
["2016-12-21","@ CAR","W 2-1",0,0,0,0,2,0,0,0,0,0,0,0,"21:04:00","03:51:00","00:00:00","17:13:00"]
["2016-12-26","vs MON","W 3-1",0,0,0,0,2,0,0,0,0,0,0,0,"19:17:00","04:00:00","00:00:00","15:17:00"]
["2016-12-28","@ BUF","W 2-0",1,0,1,1,4,25,0,0,0,0,1,0,"19:30:00","02:00:00","00:00:00","17:30:00"]
["2016-12-30","vs BUF","W 5-2",2,0,2,2,10,20,0,0,0,0,0,4,"21:38:00","04:24:00","00:00:00","17:14:00"]
["2016-12-31","@ CAR","L 4-2",1,0,1,-1,6,16.7,0,0,0,0,0,0,"20:05:00","00:00:00","00:00:00","20:05:00"]
["2016-01-02","@ CLB","L 5-4 (SO)",0,0,0,-1,6,0,0,0,0,0,0,0,1.0673611111111112,"09:05:00","00:00:00","16:32:00"]
["2016-01-05","@ BOS","W 3-2",0,0,0,-1,2,0,0,0,0,0,0,0,"19:09:00","03:52:00","00:00:00","15:17:00"]
["2016-01-07","@ NYI","W 4-1",1,0,1,2,8,12.5,0,0,0,0,1,2,"16:36:00","03:02:00","00:00:00","13:34:00"]
["2016-01-09","@ NYR","W 4-3 (OT)",2,0,2,2,5,40,1,0,0,0,1,0,"21:32:00","04:01:00","00:06:00","17:25:00"]
["2016-01-10","vs OTT","W 7-1",2,0,2,2,6,33.299999999999997,1,0,0,0,0,0,"18:14:00","03:36:00","00:00:00","14:38:00"]
["2016-01-14","vs VAN","W 4-1",0,0,0,0,5,0,0,0,0,0,0,0,"20:16:00","03:22:00","00:00:00","16:54:00"]
["2016-01-16","@ BUF","L 4-1",0,0,0,-2,4,0,0,0,0,0,0,0,"21:11:00","07:21:00","00:00:00","13:50:00"]
["2016-01-17","vs NYR","W 5-2",1,0,1,0,2,50,1,0,0,0,0,0,"23:16:00","05:39:00","00:00:00","17:37:00"]
["2016-01-19","@ CLB","W 6-3",1,1,2,0,6,16.7,1,0,0,0,0,0,"16:37:00","01:44:00","00:00:00","14:53:00"]
["2016-01-27","vs PHI","L 4-3 (OT)",0,0,0,1,6,0,0,0,0,0,0,2,"19:58:00","03:46:00","00:00:00","16:12:00"]
["2016-02-04","vs NYI","W 3-2",1,0,1,1,5,20,0,0,0,0,1,2,"19:22:00","03:08:00","00:00:00","16:14:00"]
["2016-02-06","@ NJ","W 3-2 (SO)",0,0,0,0,4,0,0,0,0,0,0,0,"23:55:00","06:00:00","00:00:00","17:55:00"]
["2016-02-07","vs PHI","W 3-2",1,0,1,1,5,20,0,0,0,0,0,0,"18:59:00","03:46:00","00:00:00","15:13:00"]
["2016-02-09","@ NSH","W 5-3",1,0,1,0,3,33.299999999999997,1,0,0,0,0,0,"18:13:00","01:31:00","00:00:00","16:42:00"]
["2016-02-11","@ MIN","W 4-3",3,0,3,1,10,30,1,0,0,0,0,0,"19:47:00","06:49:00","00:00:00","12:58:00"]
["2016-02-13","@ DAL","L 4-3",1,0,1,-1,5,20,1,0,0,0,0,0,"21:52:00","04:57:00","00:00:00","16:55:00"]
["2016-02-16","vs LA","W 3-1",0,0,0,-1,10,0,0,0,0,0,0,0,"19:29:00","07:31:00","00:00:00","11:58:00"]
["2016-02-18","@ NYI","W 3-2 (OT)",2,0,2,0,10,20,1,0,0,0,0,0,"21:05:00","06:03:00","00:00:00","15:02:00"]
["2016-02-20","vs NJ","W 4-3",1,1,2,1,6,16.7,0,0,0,0,0,0,"20:39:00","05:25:00","00:00:00","15:14:00"]
["2016-02-22","vs ARI","W 3-2",1,1,2,1,9,11.1,0,1,0,0,0,4,"22:21:00","07:22:00","00:00:00","14:59:00"]
["2016-02-24","vs MON","L 4-3",0,1,1,0,2,0,0,0,0,0,0,0,"23:35:00","05:47:00","00:00:00","17:48:00"]
["2016-02-26","vs MIN","W 3-2",1,1,2,1,4,25,1,0,0,0,0,0,"19:13:00","00:29:00","00:00:00","18:44:00"]
["2016-02-28","@ CHI","L 3-2",0,0,0,0,5,0,0,0,0,0,0,2,"21:03:00","06:28:00","00:00:00","14:35:00"]
["2016-03-01","vs PIT","W 3-2",0,0,0,-1,3,0,0,0,0,0,0,0,"18:37:00","03:09:00","00:00:00","15:28:00"]
["2016-03-02","vs TOR","W 3-2",1,0,1,1,3,33.299999999999997,0,0,0,0,0,0,"17:40:00","05:52:00","00:00:00","11:48:00"]
["2016-03-04","vs NYR","L 3-2",0,0,0,-2,1,0,0,0,0,0,0,0,"19:15:00","03:01:00","00:00:00","16:14:00"]
["2016-03-05","@ BOS","W 2-1 (OT)",0,1,1,0,5,0,0,0,0,0,0,5,"19:53:00","04:55:00","00:00:00","14:58:00"]
["2016-03-07","@ ANA","W 2-1 (SO)",0,0,0,-1,5,0,0,0,0,0,0,2,"20:29:00","06:07:00","00:00:00","14:22:00"]
["2016-03-09","@ LA","L 4-3 (OT)",0,1,1,0,4,0,0,0,0,0,0,0,"19:35:00","00:45:00","00:00:00","18:50:00"]
["2016-03-12","@ SJ","L 5-2",0,1,1,-2,2,0,0,1,0,0,0,0,"21:30:00","04:24:00","00:00:00","17:06:00"]
["2016-03-15","vs CAR","W 2-1 (OT)",1,0,1,0,7,14.3,0,0,0,0,1,0,"18:21:00","02:00:00","00:00:00",{"$f":"P68-(Q68+R68)","v":"16:21:00"}]
["2016-03-18","vs NSH","W 4-1",0,0,0,0,5,0,0,0,0,0,0,2,"21:01:00","06:35:00","00:00:00","14:26:00"]
["2016-03-20","@ PIT","L 6-2",0,0,0,0,3,0,0,0,0,0,0,0,"18:42:00","03:53:00","00:00:00","14:49:00"]
["2016-03-22","@ OTT","W 4-2",1,0,1,-1,4,25,1,0,0,0,0,0,"17:45:00","02:37:00","00:00:00","15:08:00"]
["2016-03-25","@ NJ","W 1-0 (OT)",0,0,0,0,4,0,0,0,0,0,0,2,"22:02:00","03:55:00","00:00:00","18:07:00"]
["2016-03-26","vs STL","L 4-0",0,0,0,-2,4,0,0,0,0,0,0,2,"20:18:00","03:33:00","00:00:00","16:45:00"]
["2016-03-28","vs CLB","W 4-1",0,0,0,1,2,0,0,0,0,0,0,0,"17:00:00","05:42:00","00:00:00","11:18:00"]
[null,null,null,null,null,null,null,null,null,null,null,null,null,null,null,null,null,null,"00:00:00"]
[null,null,null,null,null,null,null,null,null,null,null,null,null,null,null,null,null,null,"00:00:00"]
[null,null,null,null,null,null,null,null,null,null,null,null,null,null,null,null,null,null,"00:00:00"]
[null,null,null,null,null,null,null,null,null,null,null,null,null,null,null,null,null,null,"00:00:00"]
[null,null,null,null,null,null,null,null,null,null,null,null,null,null,null,null,null,null,"00:00:00"]
[null,null,null,null,null,null,null,null,null,null,null,null,null,null,null,null,null,null,"00:00:00"]
[null,null,null,null,null,null,null,null,null,null,null,null,null,null,null,null,null,null,"00:00:00"]
[null,null,null,null,null,null,null,null,null,null,null,null,null,null,null,null,null,null,"00:00:00"]
[null,null,null,null,null,null,null,null,null,null,null,null,null,null,null,null,null,null,"00:00:00"]
[null,null,null,null,null,null,null,null,null,null,null,null,null,null,null,null,null,null,"00:00:00"]
[null,null,null,null,null,null,null,null,null,null,null,null,null,null,null,null,null,null,"00:00:00"]
[null,null,null,null,null,null,null,null,null,null,null,null,null,null,null,null,null,null,"00:00:00"]
[null,null,null,null,null,null,null,null,null,null,null,null,null,null,null,null,null,null,"00:00:00"]
[null,null,null,null,null,null,null,null,null,null,null,null,null,null,null,null,null,null,"00:00:00"]
[null,null,null,null,null,null,null,null,null,null,null,null,null,null,null,null,null,null,"00:00:00"]
[null,null,null,null,null,null,null,null,null,null,null,null,null,null,null,null,null,null,"00:00:00"]
[null,null,null,null,null,null,null,null,null,null,null,null,null,null,null,null,null,null,"00:00:00"]
[null,null,null,null,null,null,null,null,null,null,null,null,null,null,null,null,null,null,"00:00:00"]
[null,null,null,null,null,null,null,null,null,null,null,null,null,null,null,null,null,null,"00:00:00"]
[null,null,null,null,null,null,null,null,null,null,null,null,null,null,null,null,null,null,"00:00:00"]
[null,null,null,null,null,null,null,null,null,null,null,null,null,null,null,null,null,null,"00:00:00"]
[null,null,null,null,null,null,null,null,null,null,null,null,null,null,null,null,null,null,"00:00:00"]
[null,null,null,null,null,null,null,null,null,null,null,null,null,null,null,null,null,null,"00:00:00"]
[null,null,null,null,null,null,null,null,null,null,null,null,null,null,null,null,null,null,"00:00:00"]
[null,null,null,null,null,null,null,null,null,null,null,null,null,null,null,null,null,null,"00:00:00"]
[null,null,null,null,null,null,null,null,null,null,null,null,null,null,null,null,null,null,"00:00:00"]
[null,null,null,null,null,null,null,null,null,null,null,null,null,null,null,null,null,null,"00:00:00"]
[null,null,null,null,null,null,null,null,null,null,null,null,null,null,null,null,null,null,"00:00:00"]
[null,null,null,null,null,null,null,null,null,null,null,null,null,null,null,null,null,null,"00:00:00"]
[null,null,null,null,null,null,null,null,null,null,null,null,null,null,null,null,null,null,"00:00:00"]
[null,null,null,null,null,null,null,null,null,null,null,null,null,null,null,null,null,null,"00:00:00"]
[null,null,null,null,null,null,null,null,null,null,null,null,null,null,null,null,null,null,"00:00:00"]
[null,null,null,null,null,null,null,null,null,null,null,null,null,null,null,null,null,null,"00:00:00"]
[null,null,null,null,null,null,null,null,null,null,null,null,null,null,null,null,null,null,"00:00:00"]
[null,null,null,null,null,null,null,null,null,null,null,null,null,null,null,null,null,null,"00:00:00"]
[null,null,null,null,null,null,null,null,null,null,null,null,null,null,null,null,null,null,"00:00:00"]
[null,null,null,null,null,null,null,null,null,null,null,null,null,null,null,null,null,null,"00:00:00"]
[null,null,null,null,null,null,null,null,null,null,null,null,null,null,null,null,null,null,"00:00:00"]
[null,null,null,null,null,null,null,null,null,null,null,null,null,null,null,null,null,null,"00:00:00"]
[null,null,null,null,null,null,null,null,null,null,null,null,null,null,null,null,null,null,"00:00:00"]
[null,null,null,null,null,null,null,null,null,null,null,null,null,null,null,null,null,null,"00:00:00"]
[null,null,null,null,null,null,null,null,null,null,null,null,null,null,null,null,null,null,"00:00:00"]
[null,null,null,null,null,null,null,null,null,null,null,null,null,null,null,null,null,null,"00:00:00"]
[null,null,null,null,null,null,null,null,null,null,null,null,null,null,null,null,null,null,"00:00:00"]
[null,null,null,null,null,null,null,null,null,null,null,null,null,null,null,null,null,null,"00:00:00"]
[null,null,null,null,null,null,null,null,null,null,null,null,null,null,null,null,null,null,"00:00:00"]

{"sheet":"Sheet6","index":2,"n_rows":502,"n_cols":2,"rows_kept":502,"cut":false,"hidden":false,"merged":[]}
["POINTS"]
["PLAYER","http://www.cbssports.com/nhl/stats/playersort/sortableTable/nhl/year-2015-season-regularseason-category-points?print_rows=9999&:sort_col=1&:sort_dir=1"]
["Patrick Kane","http://www.cbssports.com/nhl/players/playerpage/1240390/"]
["Jamie Benn","http://www.cbssports.com/nhl/players/playerpage/1639346/"]
["Sidney Crosby","http://www.cbssports.com/nhl/players/playerpage/559301/"]
["Erik Karlsson","http://www.cbssports.com/nhl/players/playerpage/1697789/"]
["Joe Pavelski","http://www.cbssports.com/nhl/players/playerpage/1133717/"]
["Joe Thornton","http://www.cbssports.com/nhl/players/playerpage/19634/"]
["Johnny Gaudreau","http://www.cbssports.com/nhl/players/playerpage/2123003/"]
["Evgeny Kuznetsov","http://www.cbssports.com/nhl/players/playerpage/2119761/"]
["Tyler Seguin","http://www.cbssports.com/nhl/players/playerpage/1757712/"]
["Brent Burns","http://www.cbssports.com/nhl/players/playerpage/433206/"]
["Anze Kopitar","http://www.cbssports.com/nhl/players/playerpage/565682/"]
["Blake Wheeler","http://www.cbssports.com/nhl/players/playerpage/1622609/"]
["Nicklas Backstrom","http://www.cbssports.com/nhl/players/playerpage/1133460/"]
["Vladimir Tarasenko","http://www.cbssports.com/nhl/players/playerpage/1778768/"]
["Claude Giroux","http://www.cbssports.com/nhl/players/playerpage/1282469/"]
["Alex Ovechkin","http://www.cbssports.com/nhl/players/playerpage/559829/"]
["Artemi Panarin","http://www.cbssports.com/nhl/players/playerpage/2197859/"]
["Steven Stamkos","http://www.cbssports.com/nhl/players/playerpage/1628816/"]
["Patrice Bergeron","http://www.cbssports.com/nhl/players/playerpage/433588/"]
["Taylor Hall","http://www.cbssports.com/nhl/players/playerpage/1757713/"]
["Nikita Kucherov","http://www.cbssports.com/nhl/players/playerpage/2094594/"]
["Mark Stone","http://www.cbssports.com/nhl/players/playerpage/1770996/"]
["Ryan Getzlaf","http://www.cbssports.com/nhl/players/playerpage/433595/"]
["Jaromir Jagr","http://www.cbssports.com/nhl/players/playerpage/19278/"]
["Kris Letang","http://www.cbssports.com/nhl/players/playerpage/566030/"]
["Sean Monahan","http://www.cbssports.com/nhl/players/playerpage/2076030/"]
["Daniel Sedin","http://www.cbssports.com/nhl/players/playerpage/151203/"]
["John Tavares","http://www.cbssports.com/nhl/players/playerpage/1685406/"]
["Filip Forsberg","http://www.cbssports.com/nhl/players/playerpage/2000656/"]
["Jussi Jokinen","http://www.cbssports.com/nhl/players/playerpage/565389/"]
["Evgeni Malkin","http://www.cbssports.com/nhl/players/playerpage/1128973/"]
["Jason Spezza","http://www.cbssports.com/nhl/players/playerpage/273557/"]
["Derick Brassard","http://www.cbssports.com/nhl/players/playerpage/1133462/"]
["Loui Eriksson","http://www.cbssports.com/nhl/players/playerpage/565668/"]
["Roman Josi","http://www.cbssports.com/nhl/players/playerpage/1770931/"]
["Kyle Okposo","http://www.cbssports.com/nhl/players/playerpage/1493839/"]
["Max Pacioretty","http://www.cbssports.com/nhl/players/playerpage/1628813/"]
["Mats Zuccarello","http://www.cbssports.com/nhl/players/playerpage/1771018/"]
["Matt Duchene","http://www.cbssports.com/nhl/players/playerpage/1685404/"]
["David Krejci","http://www.cbssports.com/nhl/players/playerpage/1133596/"]
["Brad Marchand","http://www.cbssports.com/nhl/players/playerpage/1133425/"]
["Corey Perry","http://www.cbssports.com/nhl/players/playerpage/433603/"]
["Jeff Carter","http://www.cbssports.com/nhl/players/playerpage/434820/"]
["Mikko Koivu","http://www.cbssports.com/nhl/players/playerpage/566114/"]
["Ryan O'Reilly","http://www.cbssports.com/nhl/players/playerpage/1707441/"]
["Mike Hoffman","http://www.cbssports.com/nhl/players/playerpage/1137449/"]
["Phil Kessel","http://www.cbssports.com/nhl/players/playerpage/1133422/"]
["John Klingberg","http://www.cbssports.com/nhl/players/playerpage/2094406/"]
["Kyle Palmieri","http://www.cbssports.com/nhl/players/playerpage/1770966/"]
["Tyler Toffoli","http://www.cbssports.com/nhl/players/playerpage/1771005/"]
["Ryan Johansen","http://www.cbssports.com/nhl/players/playerpage/1769716/"]
["Bobby Ryan","http://www.cbssports.com/nhl/players/playerpage/565257/"]
["Brayden Schenn","http://www.cbssports.com/nhl/players/playerpage/1707454/"]
["Vincent Trocheck","http://www.cbssports.com/nhl/players/playerpage/1897806/"]
["Alex Galchenyuk","http://www.cbssports.com/nhl/players/playerpage/2000657/"]
["Jonathan Huberdeau","http://www.cbssports.com/nhl/players/playerpage/1897686/"]
["Nathan MacKinnon","http://www.cbssports.com/nhl/players/playerpage/2076027/"]
["James Neal","http://www.cbssports.com/nhl/players/playerpage/565402/"]
["Mark Scheifele","http://www.cbssports.com/nhl/players/playerpage/1897780/"]
["Wayne Simmonds","http://www.cbssports.com/nhl/players/playerpage/1280606/"]
["Jonathan Toews","http://www.cbssports.com/nhl/players/playerpage/1282456/"]
["Oliver Ekman-Larsson","http://www.cbssports.com/nhl/players/playerpage/1765197/"]
["Mark Giordano","http://www.cbssports.com/nhl/players/playerpage/435155/"]
["Henrik Sedin","http://www.cbssports.com/nhl/players/playerpage/151204/"]
["Patrick Sharp","http://www.cbssports.com/nhl/players/playerpage/369012/"]
["P.K. Subban","http://www.cbssports.com/nhl/players/playerpage/1282455/"]
["Aleksander Barkov","http://www.cbssports.com/nhl/players/playerpage/2076014/"]
["Leon Draisaitl","http://www.cbssports.com/nhl/players/playerpage/2147141/"]
["Jack Eichel","http://www.cbssports.com/nhl/players/playerpage/2178632/"]
["Milan Lucic","http://www.cbssports.com/nhl/players/playerpage/1133424/"]
["Tomas Plekanec","http://www.cbssports.com/nhl/players/playerpage/369005/"]
["Jakub Voracek","http://www.cbssports.com/nhl/players/playerpage/1280617/"]
["Justin Williams","http://www.cbssports.com/nhl/players/playerpage/204851/"]
["Mikkel Boedker","http://www.cbssports.com/nhl/players/playerpage/1628803/"]
["Gabriel Landeskog","http://www.cbssports.com/nhl/players/playerpage/1897704/"]
["Zach Parise","http://www.cbssports.com/nhl/players/playerpage/557239/"]
["Mike Ribeiro","http://www.cbssports.com/nhl/players/playerpage/152183/"]
["Alexander Steen","http://www.cbssports.com/nhl/players/playerpage/367818/"]
["Lee Stempniak","http://www.cbssports.com/nhl/players/playerpage/566058/"]
["Ryan Suter","http://www.cbssports.com/nhl/players/playerpage/565842/"]
["Cam Atkinson","http://www.cbssports.com/nhl/players/playerpage/1897597/"]
["Tyson Barrie","http://www.cbssports.com/nhl/players/playerpage/1707381/"]
["Max Domi","http://www.cbssports.com/nhl/players/playerpage/2076018/"]
["Drew Doughty","http://www.cbssports.com/nhl/players/playerpage/1628806/"]
["Carl Soderberg","http://www.cbssports.com/nhl/players/playerpage/1134156/"]
["Shea Weber","http://www.cbssports.com/nhl/players/playerpage/433220/"]
["Pavel Datsyuk","http://www.cbssports.com/nhl/players/playerpage/274244/"]
["Frans Nielsen","http://www.cbssports.com/nhl/players/playerpage/1134138/"]
["Jeff Skinner","http://www.cbssports.com/nhl/players/playerpage/1770990/"]
["Reilly Smith","http://www.cbssports.com/nhl/players/playerpage/1960631/"]
["Ryan Spooner","http://www.cbssports.com/nhl/players/playerpage/1769728/"]
["Henrik Zetterberg","http://www.cbssports.com/nhl/players/playerpage/151240/"]
["Mika Zibanejad","http://www.cbssports.com/nhl/players/playerpage/1897821/"]
["Adam Henrique","http://www.cbssports.com/nhl/players/playerpage/1639405/"]
["Patric Hornqvist","http://www.cbssports.com/nhl/players/playerpage/1280574/"]
["T.J. Oshie","http://www.cbssports.com/nhl/players/playerpage/1628812/"]
["Dustin Byfuglien","http://www.cbssports.com/nhl/players/playerpage/566539/"]
["Jordan Eberle","http://www.cbssports.com/nhl/players/playerpage/1639388/"]
["Scott Hartnell","http://www.cbssports.com/nhl/players/playerpage/204569/"]
["Boone Jenner","http://www.cbssports.com/nhl/players/playerpage/1897689/"]
["Connor McDavid","http://www.cbssports.com/nhl/players/playerpage/2178633/"]
["Victor Rask","http://www.cbssports.com/nhl/players/playerpage/1897763/"]
["Jordan Staal","http://www.cbssports.com/nhl/players/playerpage/1133726/"]
["Shane Doan","http://www.cbssports.com/nhl/players/playerpage/19368/"]
["Brandon Dubinsky","http://www.cbssports.com/nhl/players/playerpage/566104/"]
["Victor Hedman","http://www.cbssports.com/nhl/players/playerpage/1685405/"]
["Tomas Hertl","http://www.cbssports.com/nhl/players/playerpage/2000661/"]
["Nazem Kadri","http://www.cbssports.com/nhl/players/playerpage/1707417/"]
["Ryan Kesler","http://www.cbssports.com/nhl/players/playerpage/433666/"]
["Dylan Larkin","http://www.cbssports.com/nhl/players/playerpage/2147354/"]
["Brandon Saad","http://www.cbssports.com/nhl/players/playerpage/1899136/"]
["Paul Stastny","http://www.cbssports.com/nhl/players/playerpage/1114920/"]
["Derek Stepan","http://www.cbssports.com/nhl/players/playerpage/1770995/"]
["Tomas Tatar","http://www.cbssports.com/nhl/players/playerpage/1707461/"]
["Keith Yandle","http://www.cbssports.com/nhl/players/playerpage/566137/"]
["T.J. Brodie","http://www.cbssports.com/nhl/players/playerpage/1639357/"]
["Jarome Iginla","http://www.cbssports.com/nhl/players/playerpage/19096/"]
["Duncan Keith","http://www.cbssports.com/nhl/players/playerpage/435185/"]
["Andrew Ladd","http://www.cbssports.com/nhl/players/playerpage/565239/"]
["Patrick Marleau","http://www.cbssports.com/nhl/players/playerpage/19674/"]
["Nino Niederreiter","http://www.cbssports.com/nhl/players/playerpage/1765199/"]
["Rickard Rakell","http://www.cbssports.com/nhl/players/playerpage/1899132/"]
["Charlie Coyle","http://www.cbssports.com/nhl/players/playerpage/2041394/"]
["Anthony Duclair","http://www.cbssports.com/nhl/players/playerpage/2094560/"]
["Shayne Gostisbehere","http://www.cbssports.com/nhl/players/playerpage/2146558/"]
["Mikael Granlund","http://www.cbssports.com/nhl/players/playerpage/2036205/"]
["Jiri Hudler","http://www.cbssports.com/nhl/players/playerpage/433597/"]
["Bryan Little","http://www.cbssports.com/nhl/players/playerpage/1133423/"]
["Brent Seabrook","http://www.cbssports.com/nhl/players/playerpage/435267/"]
["Joel Ward","http://www.cbssports.com/nhl/players/playerpage/274306/"]
["Travis Zajac","http://www.cbssports.com/nhl/players/playerpage/1134161/"]
["Justin Abdelkader","http://www.cbssports.com/nhl/players/playerpage/1606856/"]
["David Backes","http://www.cbssports.com/nhl/players/playerpage/1134106/"]
["Andrei Markov","http://www.cbssports.com/nhl/players/playerpage/204657/"]
["J.T. Miller","http://www.cbssports.com/nhl/players/playerpage/1892911/"]
["Mathieu Perreault","http://www.cbssports.com/nhl/players/playerpage/1282477/"]
["Thomas Vanek","http://www.cbssports.com/nhl/players/playerpage/565429/"]
["Dougie Hamilton","http://www.cbssports.com/nhl/players/playerpage/1897675/"]
["Martin Hanzal","http://www.cbssports.com/nhl/players/playerpage/1134121/"]
["Marcus Johansson","http://www.cbssports.com/nhl/players/playerpage/1771123/"]
["Gustav Nyquist","http://www.cbssports.com/nhl/players/playerpage/1897745/"]
["Sam Reinhart","http://www.cbssports.com/nhl/players/playerpage/2147496/"]
["Rasmus Ristolainen","http://www.cbssports.com/nhl/players/playerpage/2076038/"]
["Kevin Shattenkirk","http://www.cbssports.com/nhl/players/playerpage/1770986/"]
["Mikael Backlund","http://www.cbssports.com/nhl/players/playerpage/1280555/"]
["Alex Killorn","http://www.cbssports.com/nhl/players/playerpage/2042076/"]
["Nick Leddy","http://www.cbssports.com/nhl/players/playerpage/1770942/"]
["Jake Muzzin","http://www.cbssports.com/nhl/players/playerpage/1639452/"]
["Marc-Edouard Vlasic","http://www.cbssports.com/nhl/players/playerpage/1133727/"]
["Artem Anisimov","http://www.cbssports.com/nhl/players/playerpage/1286409/"]
["Michael Cammalleri","http://www.cbssports.com/nhl/players/playerpage/368971/"]
["Jason Chimera","http://www.cbssports.com/nhl/players/playerpage/152286/"]
["Chris Kunitz","http://www.cbssports.com/nhl/players/playerpage/435197/"]
["Brock Nelson","http://www.cbssports.com/nhl/players/playerpage/2059787/"]
["P.A. Parenteau","http://www.cbssports.com/nhl/players/playerpage/273227/"]
["Teddy Purcell","http://www.cbssports.com/nhl/players/playerpage/1283869/"]
["Eric Staal","http://www.cbssports.com/nhl/players/playerpage/433611/"]
["Robby Fabbri","http://www.cbssports.com/nhl/players/playerpage/2147285/"]
["Tyler Johnson","http://www.cbssports.com/nhl/players/playerpage/1903257/"]
["Chris Kreider","http://www.cbssports.com/nhl/players/playerpage/1966327/"]
["Torey Krug","http://www.cbssports.com/nhl/players/playerpage/1960399/"]
["Elias Lindholm","http://www.cbssports.com/nhl/players/playerpage/2076026/"]
["Jamie McGinn","http://www.cbssports.com/nhl/players/playerpage/1133712/"]
["Jean-Gabriel Pageau","http://www.cbssports.com/nhl/players/playerpage/1897752/"]
["Tobias Rieder","http://www.cbssports.com/nhl/players/playerpage/2094635/"]
["Sami Vatanen","http://www.cbssports.com/nhl/players/playerpage/2039465/"]
["Andre Burakovsky","http://www.cbssports.com/nhl/players/playerpage/2076015/"]
["Sean Couturier","http://www.cbssports.com/nhl/players/playerpage/1897634/"]
["Alex Goligoski","http://www.cbssports.com/nhl/players/playerpage/1282429/"]
["Leo Komarov","http://www.cbssports.com/nhl/players/playerpage/2038244/"]
["Ondrej Palat","http://www.cbssports.com/nhl/players/playerpage/1897753/"]
["David Perron","http://www.cbssports.com/nhl/players/playerpage/1282181/"]
["Benoit Pouliot","http://www.cbssports.com/nhl/players/playerpage/566127/"]
["Michael Stone","http://www.cbssports.com/nhl/players/playerpage/1639486/"]
["Kris Versteeg","http://www.cbssports.com/nhl/players/playerpage/1133626/"]
["Matt Beleskey","http://www.cbssports.com/nhl/players/playerpage/1639343/"]
["Sam Bennett","http://www.cbssports.com/nhl/players/playerpage/2147081/"]
["Zdeno Chara","http://www.cbssports.com/nhl/players/playerpage/19791/"]
["Joe Colborne","http://www.cbssports.com/nhl/players/playerpage/1770889/"]
["Blake Comeau","http://www.cbssports.com/nhl/players/playerpage/565815/"]
["Cody Eakin","http://www.cbssports.com/nhl/players/playerpage/1707514/"]
["Justin Faulk","http://www.cbssports.com/nhl/players/playerpage/1897659/"]
["Brendan Gallagher","http://www.cbssports.com/nhl/players/playerpage/1771071/"]
["Ales Hemsky","http://www.cbssports.com/nhl/players/playerpage/273213/"]
["Evander Kane","http://www.cbssports.com/nhl/players/playerpage/1707561/"]
["Rick Nash","http://www.cbssports.com/nhl/players/playerpage/346970/"]
["Jason Pominville","http://www.cbssports.com/nhl/players/playerpage/272751/"]
["Craig Smith","http://www.cbssports.com/nhl/players/playerpage/1897791/"]
["Drew Stafford","http://www.cbssports.com/nhl/players/playerpage/1133619/"]
["Antoine Vermette","http://www.cbssports.com/nhl/players/playerpage/274304/"]
["Tyler Bozak","http://www.cbssports.com/nhl/players/playerpage/1707849/"]
["Troy Brouwer","http://www.cbssports.com/nhl/players/playerpage/565363/"]
["Joonas Donskoi","http://www.cbssports.com/nhl/players/playerpage/2197818/"]
["Nick Foligno","http://www.cbssports.com/nhl/players/playerpage/1133703/"]
["Carl Hagelin","http://www.cbssports.com/nhl/players/playerpage/1897673/"]
["Kevin Hayes","http://www.cbssports.com/nhl/players/playerpage/2145886/"]
["Anders Lee","http://www.cbssports.com/nhl/players/playerpage/2053408/"]
["Andrew Shaw","http://www.cbssports.com/nhl/players/playerpage/1899139/"]
["Anton Stralman","http://www.cbssports.com/nhl/players/playerpage/1286087/"]
["Teuvo Teravainen","http://www.cbssports.com/nhl/players/playerpage/2000678/"]
["Francois Beauchemin","http://www.cbssports.com/nhl/players/playerpage/204443/"]
["John Carlson","http://www.cbssports.com/nhl/players/playerpage/1639364/"]
["Mattias Ekholm","http://www.cbssports.com/nhl/players/playerpage/1897652/"]
["Erik Haula","http://www.cbssports.com/nhl/players/playerpage/2094579/"]
["Bo Horvat","http://www.cbssports.com/nhl/players/playerpage/2076022/"]
["Jori Lehtera","http://www.cbssports.com/nhl/players/playerpage/2147297/"]
["Ryan Nugent-Hopkins","http://www.cbssports.com/nhl/players/playerpage/1899125/"]
["Tanner Pearson","http://www.cbssports.com/nhl/players/playerpage/2000670/"]
["Morgan Rielly","http://www.cbssports.com/nhl/players/playerpage/2000673/"]
["Logan Couture","http://www.cbssports.com/nhl/players/playerpage/1282170/"]
["Nikolaj Ehlers","http://www.cbssports.com/nhl/players/playerpage/2147336/"]
["Michael Frolik","http://www.cbssports.com/nhl/players/playerpage/1282428/"]
["Mike Green","http://www.cbssports.com/nhl/players/playerpage/565379/"]
["Jannik Hansen","http://www.cbssports.com/nhl/players/playerpage/566017/"]
["Marian Hossa","http://www.cbssports.com/nhl/players/playerpage/19668/"]
["Ryan McDonagh","http://www.cbssports.com/nhl/players/playerpage/1757711/"]
["Vladislav Namestnikov","http://www.cbssports.com/nhl/players/playerpage/1897737/"]
["Dion Phaneuf","http://www.cbssports.com/nhl/players/playerpage/433604/"]
["Jakob Silfverberg","http://www.cbssports.com/nhl/players/playerpage/1970778/"]
["Zack Smith","http://www.cbssports.com/nhl/players/playerpage/1639481/"]
["Alex Tanguay","http://www.cbssports.com/nhl/players/playerpage/20534/"]
["Alexander Wennberg","http://www.cbssports.com/nhl/players/playerpage/2076042/"]
["Josh Bailey","http://www.cbssports.com/nhl/players/playerpage/1639341/"]
["Ryan Ellis","http://www.cbssports.com/nhl/players/playerpage/1707401/"]
["Alec Martinez","http://www.cbssports.com/nhl/players/playerpage/1639440/"]
["Matt Niskanen","http://www.cbssports.com/nhl/players/playerpage/1282446/"]
["Colton Parayko","http://www.cbssports.com/nhl/players/playerpage/2197860/"]
["Nick Bjugstad","http://www.cbssports.com/nhl/players/playerpage/2054009/"]
["Jake Gardiner","http://www.cbssports.com/nhl/players/playerpage/1897666/"]
["Alex Pietrangelo","http://www.cbssports.com/nhl/players/playerpage/1639463/"]
["Andrej Sekera","http://www.cbssports.com/nhl/players/playerpage/565421/"]
["Kyle Turris","http://www.cbssports.com/nhl/players/playerpage/1606858/"]
["Brian Campbell","http://www.cbssports.com/nhl/players/playerpage/19784/"]
["Aaron Ekblad","http://www.cbssports.com/nhl/players/playerpage/2147283/"]
["Brian Gionta","http://www.cbssports.com/nhl/players/playerpage/274253/"]
["Jimmy Hayes","http://www.cbssports.com/nhl/players/playerpage/1899100/"]
["Mattias Janmark","http://www.cbssports.com/nhl/players/playerpage/2197831/"]
["Jared Spurgeon","http://www.cbssports.com/nhl/players/playerpage/1639484/"]
["James van Riemsdyk","http://www.cbssports.com/nhl/players/playerpage/1689413/"]
["Sven Baertschi","http://www.cbssports.com/nhl/players/playerpage/1899072/"]
["Ryan Callahan","http://www.cbssports.com/nhl/players/playerpage/566093/"]
["Jesper Fast","http://www.cbssports.com/nhl/players/playerpage/2094564/"]
["Valtteri Filppula","http://www.cbssports.com/nhl/players/playerpage/566179/"]
["Calle Jarnkrok","http://www.cbssports.com/nhl/players/playerpage/2094584/"]
["Seth Jones","http://www.cbssports.com/nhl/players/playerpage/2076023/"]
["Hampus Lindholm","http://www.cbssports.com/nhl/players/playerpage/2000665/"]
["Dmitry Orlov","http://www.cbssports.com/nhl/players/playerpage/1899127/"]
["Brandon Pirri","http://www.cbssports.com/nhl/players/playerpage/1770972/"]
["Michael Raffl","http://www.cbssports.com/nhl/players/playerpage/2095287/"]
["Brad Richardson","http://www.cbssports.com/nhl/players/playerpage/433607/"]
["Dustin Brown","http://www.cbssports.com/nhl/players/playerpage/433636/"]
["Andrew Cogliano","http://www.cbssports.com/nhl/players/playerpage/1284625/"]
["David Desharnais","http://www.cbssports.com/nhl/players/playerpage/1639595/"]
["Peter Holland","http://www.cbssports.com/nhl/players/playerpage/1707560/"]
["Tyler Myers","http://www.cbssports.com/nhl/players/playerpage/1639453/"]
["Valeri Nichushkin","http://www.cbssports.com/nhl/players/playerpage/2076034/"]
["Antoine Roussel","http://www.cbssports.com/nhl/players/playerpage/1899135/"]
["Radim Vrbata","http://www.cbssports.com/nhl/players/playerpage/151231/"]
["Dale Weise","http://www.cbssports.com/nhl/players/playerpage/1639496/"]
["Casey Cizikas","http://www.cbssports.com/nhl/players/playerpage/1707391/"]
["Matt Cullen","http://www.cbssports.com/nhl/players/playerpage/19630/"]
["Trevor Daley","http://www.cbssports.com/nhl/players/playerpage/346966/"]
["Cam Fowler","http://www.cbssports.com/nhl/players/playerpage/1770908/"]
["Erik Johnson","http://www.cbssports.com/nhl/players/playerpage/1228267/"]
["Oscar Lindberg","http://www.cbssports.com/nhl/players/playerpage/2094605/"]
["Brett Connolly","http://www.cbssports.com/nhl/players/playerpage/1770891/"]
["Matt Dumba","http://www.cbssports.com/nhl/players/playerpage/2000654/"]
["Tomas Fleischmann","http://www.cbssports.com/nhl/players/playerpage/369707/"]
["Mikhail Grabovski","http://www.cbssports.com/nhl/players/playerpage/1134118/"]
["Mikhail Grigorenko","http://www.cbssports.com/nhl/players/playerpage/2000660/"]
["Niklas Kronwall","http://www.cbssports.com/nhl/players/playerpage/435194/"]
["Shawn Matthias","http://www.cbssports.com/nhl/players/playerpage/1133476/"]
["Matt Read","http://www.cbssports.com/nhl/players/playerpage/1897766/"]
["Brad Richards","http://www.cbssports.com/nhl/players/playerpage/20508/"]
["Ryan Strome","http://www.cbssports.com/nhl/players/playerpage/1897797/"]
["Darren Helm","http://www.cbssports.com/nhl/players/playerpage/565675/"]
["Mark Letestu","http://www.cbssports.com/nhl/players/playerpage/1713505/"]
["Patrick Maroon","http://www.cbssports.com/nhl/players/playerpage/1280586/"]
["Jordan Martinook","http://www.cbssports.com/nhl/players/playerpage/2094050/"]
["Johnny Boychuk","http://www.cbssports.com/nhl/players/playerpage/346965/"]
["Justin Braun","http://www.cbssports.com/nhl/players/playerpage/1770879/"]
["Jason Demers","http://www.cbssports.com/nhl/players/playerpage/1639513/"]
["Lars Eller","http://www.cbssports.com/nhl/players/playerpage/1628807/"]
["Niklas Hjalmarsson","http://www.cbssports.com/nhl/players/playerpage/1282431/"]
["Ben Hutton","http://www.cbssports.com/nhl/players/playerpage/2198314/"]
["Andrej Nestrasil","http://www.cbssports.com/nhl/players/playerpage/1707438/"]
["Joakim Nordstrom","http://www.cbssports.com/nhl/players/playerpage/2094620/"]
["David Pastrnak","http://www.cbssports.com/nhl/players/playerpage/2147475/"]
["Devante Smith-Pelly","http://www.cbssports.com/nhl/players/playerpage/2058140/"]
["Jason Zucker","http://www.cbssports.com/nhl/players/playerpage/1960880/"]
["Zach Bogosian","http://www.cbssports.com/nhl/players/playerpage/1628804/"]
["Nick Bonino","http://www.cbssports.com/nhl/players/playerpage/1743550/"]
["Brad Boyes","http://www.cbssports.com/nhl/players/playerpage/204462/"]
["J.T. Brown","http://www.cbssports.com/nhl/players/playerpage/1961381/"]
["Cal Clutterbuck","http://www.cbssports.com/nhl/players/playerpage/1133466/"]
["Vernon Fiddler","http://www.cbssports.com/nhl/players/playerpage/371777/"]
["Mike Fisher","http://www.cbssports.com/nhl/players/playerpage/20424/"]
["Marcus Foligno","http://www.cbssports.com/nhl/players/playerpage/1707405/"]
["Marian Gaborik","http://www.cbssports.com/nhl/players/playerpage/205109/"]
["Kevin Klein","http://www.cbssports.com/nhl/players/playerpage/433212/"]
["Ryan Murray","http://www.cbssports.com/nhl/players/playerpage/2000669/"]
["Riley Sheahan","http://www.cbssports.com/nhl/players/playerpage/1964559/"]
["Tom Wilson","http://www.cbssports.com/nhl/players/playerpage/2000681/"]
["Colin Wilson","http://www.cbssports.com/nhl/players/playerpage/1689412/"]
["Karl Alzner","http://www.cbssports.com/nhl/players/playerpage/1282165/"]
["Dan Boyle","http://www.cbssports.com/nhl/players/playerpage/125842/"]
["Alex Burrows","http://www.cbssports.com/nhl/players/playerpage/371763/"]
["Cody Ceci","http://www.cbssports.com/nhl/players/playerpage/2000653/"]
["Travis Hamonic","http://www.cbssports.com/nhl/players/playerpage/1639403/"]
["Nick Holden","http://www.cbssports.com/nhl/players/playerpage/1639719/"]
["Lauri Korpikoski","http://www.cbssports.com/nhl/players/playerpage/1134127/"]
["Riley Nash","http://www.cbssports.com/nhl/players/playerpage/1770957/"]
["David Savard","http://www.cbssports.com/nhl/players/playerpage/1707452/"]
["Jaden Schwartz","http://www.cbssports.com/nhl/players/playerpage/1778767/"]
["Mark Streit","http://www.cbssports.com/nhl/players/playerpage/565841/"]
["Danny DeKeyser","http://www.cbssports.com/nhl/players/playerpage/2053880/"]
["Alexander Edler","http://www.cbssports.com/nhl/players/playerpage/566008/"]
["Luke Glendening","http://www.cbssports.com/nhl/players/playerpage/2095135/"]
["Noah Hanifin","http://www.cbssports.com/nhl/players/playerpage/2178823/"]
["Curtis Lazar","http://www.cbssports.com/nhl/players/playerpage/2076025/"]
["Johnny Oduya","http://www.cbssports.com/nhl/players/playerpage/273331/"]
["Marco Scandella","http://www.cbssports.com/nhl/players/playerpage/1707453/"]
["Colton Sceviour","http://www.cbssports.com/nhl/players/playerpage/1639479/"]
["Damon Severson","http://www.cbssports.com/nhl/players/playerpage/2093865/"]
["Viktor Stalberg","http://www.cbssports.com/nhl/players/playerpage/1707857/"]
["Chris Tierney","http://www.cbssports.com/nhl/players/playerpage/2094650/"]
["Nail Yakupov","http://www.cbssports.com/nhl/players/playerpage/2000682/"]
["Nathan Beaulieu","http://www.cbssports.com/nhl/players/playerpage/1897604/"]
["Reid Boucher","http://www.cbssports.com/nhl/players/playerpage/1897611/"]
["Jay Bouwmeester","http://www.cbssports.com/nhl/players/playerpage/347842/"]
["William Karlsson","http://www.cbssports.com/nhl/players/playerpage/2147184/"]
["Nikolay Kulemin","http://www.cbssports.com/nhl/players/playerpage/1639425/"]
["Scott Laughton","http://www.cbssports.com/nhl/players/playerpage/2000664/"]
["Olli Maatta","http://www.cbssports.com/nhl/players/playerpage/2000666/"]
["Paul Martin","http://www.cbssports.com/nhl/players/playerpage/435220/"]
["Kris Russell","http://www.cbssports.com/nhl/players/playerpage/565699/"]
["David Schlemko","http://www.cbssports.com/nhl/players/playerpage/1661360/"]
["Andrej Sustr","http://www.cbssports.com/nhl/players/playerpage/2051254/"]
["Dennis Wideman","http://www.cbssports.com/nhl/players/playerpage/435308/"]
["Alexander Burmistrov","http://www.cbssports.com/nhl/players/playerpage/1770882/"]
["Matt Calvert","http://www.cbssports.com/nhl/players/playerpage/1639361/"]
["Ron Hainsey","http://www.cbssports.com/nhl/players/playerpage/274035/"]
["David Jones","http://www.cbssports.com/nhl/players/playerpage/1283885/"]
["Vincent Lecavalier","http://www.cbssports.com/nhl/players/playerpage/20464/"]
["Kevan Miller","http://www.cbssports.com/nhl/players/playerpage/2094613/"]
["John Mitchell","http://www.cbssports.com/nhl/players/playerpage/566122/"]
["Matt Moulson","http://www.cbssports.com/nhl/players/playerpage/1137126/"]
["Jaccob Slavin","http://www.cbssports.com/nhl/players/playerpage/2197878/"]
["Chris Stewart","http://www.cbssports.com/nhl/players/playerpage/1133489/"]
["Jacob Trouba","http://www.cbssports.com/nhl/players/playerpage/2000679/"]
["Tommy Wingels","http://www.cbssports.com/nhl/players/playerpage/1771015/"]
["Daniel Winnik","http://www.cbssports.com/nhl/players/playerpage/1134160/"]
["Joseph Blandisi","http://www.cbssports.com/nhl/players/playerpage/2093845/"]
["Brian Boyle","http://www.cbssports.com/nhl/players/playerpage/1282214/"]
["Paul Byron","http://www.cbssports.com/nhl/players/playerpage/1282169/"]
["Kevin Connauton","http://www.cbssports.com/nhl/players/playerpage/1707394/"]
["Phil Di Giuseppe","http://www.cbssports.com/nhl/players/playerpage/2147137/"]
["Cody Franson","http://www.cbssports.com/nhl/players/playerpage/565818/"]
["Dan Girardi","http://www.cbssports.com/nhl/players/playerpage/1137447/"]
["Zemgus Girgensons","http://www.cbssports.com/nhl/players/playerpage/2000659/"]
["Michael Grabner","http://www.cbssports.com/nhl/players/playerpage/1133704/"]
["Melker Karlsson","http://www.cbssports.com/nhl/players/playerpage/2147185/"]
["Adam Larsson","http://www.cbssports.com/nhl/players/playerpage/1892909/"]
["John-Michael Liles","http://www.cbssports.com/nhl/players/playerpage/435205/"]
["Adam Lowry","http://www.cbssports.com/nhl/players/playerpage/1897713/"]
["Jonathan Marchessault","http://www.cbssports.com/nhl/players/playerpage/1897598/"]
["Matt Martin","http://www.cbssports.com/nhl/players/playerpage/1639439/"]
["John Moore","http://www.cbssports.com/nhl/players/playerpage/1707435/"]
["Matt Nieto","http://www.cbssports.com/nhl/players/playerpage/2094796/"]
["Chris Tanev","http://www.cbssports.com/nhl/players/playerpage/1771089/"]
["Sven Andrighetto","http://www.cbssports.com/nhl/players/playerpage/2094531/"]
["Viktor Arvidsson","http://www.cbssports.com/nhl/players/playerpage/2146553/"]
["Brian Dumoulin","http://www.cbssports.com/nhl/players/playerpage/2094561/"]
["Toby Enstrom","http://www.cbssports.com/nhl/players/playerpage/1286081/"]
["Justin Fontaine","http://www.cbssports.com/nhl/players/playerpage/1899088/"]
["Dmitry Kulikov","http://www.cbssports.com/nhl/players/playerpage/1707518/"]
["Trevor Lewis","http://www.cbssports.com/nhl/players/playerpage/1133473/"]
["Jared McCann","http://www.cbssports.com/nhl/players/playerpage/2198317/"]
["Milan Michalek","http://www.cbssports.com/nhl/players/playerpage/433214/"]
["Torrey Mitchell","http://www.cbssports.com/nhl/players/playerpage/1285575/"]
["Brett Pesce","http://www.cbssports.com/nhl/players/playerpage/2147652/"]
["Alex Petrovic","http://www.cbssports.com/nhl/players/playerpage/1771081/"]
["Jeff Petry","http://www.cbssports.com/nhl/players/playerpage/1765200/"]
["Roman Polak","http://www.cbssports.com/nhl/players/playerpage/1134147/"]
["Mike Santorelli","http://www.cbssports.com/nhl/players/playerpage/1280604/"]
["Nate Schmidt","http://www.cbssports.com/nhl/players/playerpage/2094805/"]
["Ryan White","http://www.cbssports.com/nhl/players/playerpage/1282461/"]
["Matt Bartkowski","http://www.cbssports.com/nhl/players/playerpage/1770869/"]
["Jay Beagle","http://www.cbssports.com/nhl/players/playerpage/1605163/"]
["Kevin Bieksa","http://www.cbssports.com/nhl/players/playerpage/583339/"]
["Patrick Eaves","http://www.cbssports.com/nhl/players/playerpage/563440/"]
["Sam Gagner","http://www.cbssports.com/nhl/players/playerpage/1280567/"]
["Thomas Hickey","http://www.cbssports.com/nhl/players/playerpage/1280571/"]
["Colin Miller","http://www.cbssports.com/nhl/players/playerpage/1897733/"]
["Dominic Moore","http://www.cbssports.com/nhl/players/playerpage/204680/"]
["Connor Murphy","http://www.cbssports.com/nhl/players/playerpage/2094615/"]
["Shane Prince","http://www.cbssports.com/nhl/players/playerpage/1897762/"]
["Luke Schenn","http://www.cbssports.com/nhl/players/playerpage/1628815/"]
["Brendan Smith","http://www.cbssports.com/nhl/players/playerpage/1770992/"]
["Linden Vey","http://www.cbssports.com/nhl/players/playerpage/1707465/"]
["Marek Zidlicky","http://www.cbssports.com/nhl/players/playerpage/435315/"]
["Patrik Berglund","http://www.cbssports.com/nhl/players/playerpage/1282417/"]
["Micheal Ferland","http://www.cbssports.com/nhl/players/playerpage/1769712/"]
["Radko Gudas","http://www.cbssports.com/nhl/players/playerpage/1770919/"]
["Shawn Horcoff","http://www.cbssports.com/nhl/players/playerpage/204580/"]
["Jack Johnson","http://www.cbssports.com/nhl/players/playerpage/1209085/"]
["Tyler Kennedy","http://www.cbssports.com/nhl/players/playerpage/566022/"]
["Joffrey Lupul","http://www.cbssports.com/nhl/players/playerpage/372289/"]
["Josh Manson","http://www.cbssports.com/nhl/players/playerpage/2147300/"]
["Jack Skille","http://www.cbssports.com/nhl/players/playerpage/1282453/"]
["Marc Staal","http://www.cbssports.com/nhl/players/playerpage/565423/"]
["Matt Stajan","http://www.cbssports.com/nhl/players/playerpage/367817/"]
["Alex Chiasson","http://www.cbssports.com/nhl/players/playerpage/2050261/"]
["Michael Del Zotto","http://www.cbssports.com/nhl/players/playerpage/1639380/"]
["Jonathan Ericsson","http://www.cbssports.com/nhl/players/playerpage/1133591/"]
["Andy Greene","http://www.cbssports.com/nhl/players/playerpage/1137448/"]
["Dmitrij Jaskin","http://www.cbssports.com/nhl/players/playerpage/2054434/"]
["Jacob Josefson","http://www.cbssports.com/nhl/players/playerpage/1770930/"]
["Sergey Kalinin","http://www.cbssports.com/nhl/players/playerpage/2198225/"]
["Dwight King","http://www.cbssports.com/nhl/players/playerpage/1280578/"]
["Johan Larsson","http://www.cbssports.com/nhl/players/playerpage/2043047/"]
["David Legwand","http://www.cbssports.com/nhl/players/playerpage/20466/"]
["Derek MacKenzie","http://www.cbssports.com/nhl/players/playerpage/152173/"]
["Jake McCabe","http://www.cbssports.com/nhl/players/playerpage/2038918/"]
["Cody McLeod","http://www.cbssports.com/nhl/players/playerpage/1137195/"]
["Justin Schultz","http://www.cbssports.com/nhl/players/playerpage/1993276/"]
["Chris VandeVelde","http://www.cbssports.com/nhl/players/playerpage/1771009/"]
["Jake Virtanen","http://www.cbssports.com/nhl/players/playerpage/2198328/"]
["Calvin de Haan","http://www.cbssports.com/nhl/players/playerpage/1707471/"]
["Andreas Athanasiou","http://www.cbssports.com/nhl/players/playerpage/2094035/"]
["Pierre-Edouard Bellemare","http://www.cbssports.com/nhl/players/playerpage/2147108/"]
["Kyle Chipchura","http://www.cbssports.com/nhl/players/playerpage/566001/"]
["Andrew Desjardins","http://www.cbssports.com/nhl/players/playerpage/1707933/"]
["Derek Dorsett","http://www.cbssports.com/nhl/players/playerpage/1280563/"]
["Christian Ehrhoff","http://www.cbssports.com/nhl/players/playerpage/273522/"]
["Erik Gustafsson","http://www.cbssports.com/nhl/players/playerpage/2197823/"]
["Matt Hendricks","http://www.cbssports.com/nhl/players/playerpage/1286082/"]
["Oscar Klefbom","http://www.cbssports.com/nhl/players/playerpage/2094999/"]
["Brayden McNabb","http://www.cbssports.com/nhl/players/playerpage/1707431/"]
["Marc Methot","http://www.cbssports.com/nhl/players/playerpage/433601/"]
["Teemu Pulkkinen","http://www.cbssports.com/nhl/players/playerpage/2094631/"]
["Michal Rozsival","http://www.cbssports.com/nhl/players/playerpage/20109/"]
["Dennis Seidenberg","http://www.cbssports.com/nhl/players/playerpage/369011/"]
["Nick Spaling","http://www.cbssports.com/nhl/players/playerpage/1280609/"]
["Scottie Upshall","http://www.cbssports.com/nhl/players/playerpage/347857/"]
["Trevor van Riemsdyk","http://www.cbssports.com/nhl/players/playerpage/2147580/"]
["Gregory Campbell","http://www.cbssports.com/nhl/players/playerpage/347844/"]
["Ryan Carter","http://www.cbssports.com/nhl/players/playerpage/1137120/"]
["Ian Cole","http://www.cbssports.com/nhl/players/playerpage/1770890/"]
["Brandon Davidson","http://www.cbssports.com/nhl/players/playerpage/1770898/"]
["Nicolas Deslauriers","http://www.cbssports.com/nhl/players/playerpage/1707397/"]
["Tyler Ennis","http://www.cbssports.com/nhl/players/playerpage/1639390/"]
["Eric Fehr","http://www.cbssports.com/nhl/players/playerpage/433648/"]
["Ryan Garbutt","http://www.cbssports.com/nhl/players/playerpage/1897665/"]
["Jason Garrison","http://www.cbssports.com/nhl/players/playerpage/1639667/"]
["Dan Hamhuis","http://www.cbssports.com/nhl/players/playerpage/273310/"]
["Quinton Howden","http://www.cbssports.com/nhl/players/playerpage/1770928/"]
["Josh Jooris","http://www.cbssports.com/nhl/players/playerpage/2094997/"]
["Tom Kuhnhackl","http://www.cbssports.com/nhl/players/playerpage/2094595/"]
["Brooks Laich","http://www.cbssports.com/nhl/players/playerpage/368994/"]
["Andreas Martinsen","http://www.cbssports.com/nhl/players/playerpage/2197848/"]
["Jay McClement","http://www.cbssports.com/nhl/players/playerpage/274275/"]
["Evgeny Medvedev","http://www.cbssports.com/nhl/players/playerpage/2197727/"]
["Chris Neil","http://www.cbssports.com/nhl/players/playerpage/204694/"]
["Iiro Pakarinen","http://www.cbssports.com/nhl/players/playerpage/2147474/"]
["Bryan Rust","http://www.cbssports.com/nhl/players/playerpage/2147507/"]
["Chris Terry","http://www.cbssports.com/nhl/players/playerpage/1280613/"]
["Chris Thorburn","http://www.cbssports.com/nhl/players/playerpage/272754/"]
["Chris Wideman","http://www.cbssports.com/nhl/players/playerpage/2094815/"]
["Mark Barberio","http://www.cbssports.com/nhl/players/playerpage/1707380/"]
["Jordie Benn","http://www.cbssports.com/nhl/players/playerpage/1769706/"]
["Beau Bennett","http://www.cbssports.com/nhl/players/playerpage/2038300/"]
["Braydon Coburn","http://www.cbssports.com/nhl/players/playerpage/433590/"]
["Erik Condra","http://www.cbssports.com/nhl/players/playerpage/1707586/"]
["Adam Cracknell","http://www.cbssports.com/nhl/players/playerpage/1133587/"]
["Emerson Etem","http://www.cbssports.com/nhl/players/playerpage/1770901/"]
["Landon Ferraro","http://www.cbssports.com/nhl/players/playerpage/1707403/"]
["Brian Flynn","http://www.cbssports.com/nhl/players/playerpage/2044867/"]
["Josh Gorges","http://www.cbssports.com/nhl/players/playerpage/371784/"]
["Colin Greening","http://www.cbssports.com/nhl/players/playerpage/1770917/"]
["Matt Hunwick","http://www.cbssports.com/nhl/players/playerpage/1286415/"]
["Jyrki Jokipakka","http://www.cbssports.com/nhl/players/playerpage/2094405/"]
["Ben Lovejoy","http://www.cbssports.com/nhl/players/playerpage/1639520/"]
["Miikka Salomaki","http://www.cbssports.com/nhl/players/playerpage/2094638/"]
["Nick Schultz","http://www.cbssports.com/nhl/players/playerpage/205123/"]
["Nick Shore","http://www.cbssports.com/nhl/players/playerpage/2094643/"]
["R.J. Umberger","http://www.cbssports.com/nhl/players/playerpage/564980/"]
["Frank Vatrano","http://www.cbssports.com/nhl/players/playerpage/2197887/"]
["Austin Watson","http://www.cbssports.com/nhl/players/playerpage/1771011/"]
["Ben Chiarot","http://www.cbssports.com/nhl/players/playerpage/1707557/"]
["Andrew Copp","http://www.cbssports.com/nhl/players/playerpage/2171361/"]
["Nick Cousins","http://www.cbssports.com/nhl/players/playerpage/1897633/"]
["Phillip Danault","http://www.cbssports.com/nhl/players/playerpage/1899080/"]
["Brenden Dillon","http://www.cbssports.com/nhl/players/playerpage/1897644/"]
["Joel Edmundson","http://www.cbssports.com/nhl/players/playerpage/1897650/"]
["Alexei Emelin","http://www.cbssports.com/nhl/players/playerpage/1892908/"]
["Bobby Farnham","http://www.cbssports.com/nhl/players/playerpage/2094993/"]
["Stephen Gionta","http://www.cbssports.com/nhl/players/playerpage/1133593/"]
["Scott Gomez","http://www.cbssports.com/nhl/players/playerpage/20431/"]
["Markus Granlund","http://www.cbssports.com/nhl/players/playerpage/2094573/"]